Cogmind - Beta 15 @@@ ROGUE MODE // 2025.07.26 @ 18:33:38 Player: Cracklepappy Result: Self-destructed Performance ------------- Evolutions (8) 4000 Regions Visited (34) 6800 Robots Destroyed (929) 4645 Value Destroyed (50391) 50391 Prototype IDs (108) 2160 Alien Tech Used (2) 400 Bonus (34364) 34364 TOTAL SCORE: 102760 Bonus ------- Triggered High Security 1000 High Alert Combat Kills 24551 Follower Combat Kills 2653 Entered Garrisons 1600 Acquired ECA 300 Met Warlord at Base 500 MAIN.C Attacked Warlord 500 Warlord Defense Kills 1790 Met Warlord at Research 2000 Friendly Fire -530 Cogmind --------- Core Integrity 288/1450 Matter 276/300 Energy 143/1700 System Corruption 70% Temperature Cool (0) Movement Core (600) Ox11 Location -2/Protoforge Parts ------- > --- POWER (2) -------- (None) > --- PROPULSION (4) --- (None) > --- UTILITY (11) ----- Advanced Heat Sink Concept Antigrav Storage Unit Concept Chromion Battery Concept Chromion Battery Advanced Target Analyzer Experimental Core Analyzer Experimental Core Analyzer Graphene Brace Improved Component Analysis Suite Crosscalibrator > --- WEAPON (6) ------- (None) > --- INVENTORY (25) --- Matter Drive Advanced Heat Sink Concept Antigrav Storage Unit Concept Chromion Battery (0) YI-UF0's Bottomless Matter Pit (318) Concept NT7 Matterbank (167) Experimental Core Analyzer Advanced Kinecellerator Concept Matter Streamer Heavy Laser Concept Variable Chargecaster Faulty Concept Disintegration Ray (50) Concept Disintegration Ray (46) KE Penetrator Faulty Concept XC Strikerail Faulty Concept XC Strikerail Faulty Concept XC Strikerail Faulty Concept XC Strikerail Faulty Concept Helical Railcannon Faulty Concept Helical Railcannon Concept Helical Railcannon Concept Heavy Railcannon Concept EMP Blanket Launcher Experimental Jetlance Peak State ------------ > --- POWER ------------ Antimatter Reactor Reinforced Antimatter Reactor > --- PROPULSION ------- Wheel Wheel > --- UTILITY ---------- Advanced Heat Sink Concept Antigrav Storage Unit Concept Chromion Battery Advanced Target Analyzer Experimental Core Analyzer Experimental Core Analyzer Graphene Brace Experimental Shield Generator Improved Component Analysis Suite Concept Matter Streamer Crosscalibrator > --- WEAPON ----------- Concept Plasma Driver Concept Heavy Railcannon Concept Smart ZDS Sigix Broadsword > --- INVENTORY -------- Micro Antimatter Reactor Matter Drive Advanced Heat Sink Concept Antigrav Storage Unit Concept Chromion Battery Concept Chromion Battery YI-UF0's Bottomless Matter Pit Concept NT7 Matterbank Concept NT7 Matterbank Advanced Target Analyzer Experimental Core Analyzer Advanced Kinecellerator Concept Matter Streamer Concept Lightning Penetrator Quantum Rifle Precision Phase Gun Concept Variable Chargecaster Concept Plasma Driver Core Cannon Concept XC Strikerail Concept XC Strikerail Concept Helical Railcannon Concept EMP Blanket Launcher Plasma Lance [Rating: 219] Favorites ----------- Power Improved Quantum Reactor Engine Improved Ion Engine Power Core Neutrino Core Reactor Improved Quantum Reactor Propulsion Armored Wheel Wheel Armored Wheel Utility Improved Target Analyzer Device Advanced Heat Sink Storage Huge Storage Unit Processor Improved Target Analyzer Hackware System Shield Protection Light Armor Plating Weapon Helical Railgun Energy Gun Cooled Pulse Rifle Energy Cannon Enhanced Nova Cannon Ballistic Gun Helical Railgun Ballistic Cannon Improved Light Cannon Launcher Concept Smart ZDS Special Weapon Plasma Cutter Impact Weapon Powered Hammer Slashing Weapon Sigix Broadsword Piercing Weapon Lance Special Melee Weapon Datajack Build | -11 -10 -10 -9 -9 -9 -8 -8 -8 -8 -8 -8 -8 -8 -7 -7 -7 -7 -6 -6 -6 -6 -5 -5 -5 -5 -4 -4 -4 -4 -4 -3 -2 -2 -2 ------- Run | Yrd Mat Min Mat Min Exi Min Mat Gar Mat Gar Mat Gar Mat Fac Gar Fac Gar Fac Was Fac Gar Fac Upp Upp War Pro Fac Gar Fac Gar Res Res Qua Frg Slots Evolved 16 | . . . 2 . . . 2 . . . . . . 2 . . . 2 . . . 2 . . . . 2 . . . 2 2 . . Power 1 | . . . . . . . . . . . . . . . . . . . . . . 1 . . . . . . . . . . . . Propulsion 2 | . . . . . . . . . . . . . . . . . . . . . . . . . . . . . . . 1 1 . . Utility 9 | . . . . . . . 2 . . . . . . 1 . . . 2 . . . 1 . . . . 1 . . . 1 1 . . Weapon 4 | . . . 2 . . . . . . . . . . 1 . . . . . . . . . . . . 1 . . . . . . . Parts Attached 576 | 8 10 2 29 8 1 2 3 9 14 19 2 9 1 22 14 23 10 16 5 4 55 19 4 4 14 3 5 37 . 59 13 69 22 61 Power 71 | 1 . . 5 1 . 1 . 1 2 4 . 1 . 1 2 2 1 1 1 . 8 1 1 1 2 1 1 9 . 7 1 5 1 9 Engine 24 | 1 . . 5 1 . . . 1 2 3 . 1 . 1 1 1 . 1 . . 4 . . . . . 1 . . . . . . 1 Core 16 | . . . . . . 1 . . . 1 . . . . . . 1 . . . 1 1 . 1 1 1 . 5 . 3 . . . . Reactor 31 | . . . . . . . . . . . . . . . 1 1 . . 1 . 3 . 1 . 1 . . 4 . 4 1 5 1 8 Propulsion 85 | 2 2 1 6 1 . . . 1 2 2 . . . 2 2 6 1 2 . 1 20 2 . 2 1 . 2 2 . 6 4 7 5 3 Treads . | . . . . . . . . . . . . . . . . . . . . . . . . . . . . . . . . . . . Leg . | . . . . . . . . . . . . . . . . . . . . . . . . . . . . . . . . . . . Wheel 85 | 2 2 1 6 1 . . . 1 2 2 . . . 2 2 6 1 2 . 1 20 2 . 2 1 . 2 2 . 6 4 7 5 3 Hover . | . . . . . . . . . . . . . . . . . . . . . . . . . . . . . . . . . . . Flight . | . . . . . . . . . . . . . . . . . . . . . . . . . . . . . . . . . . . Utility 199 | 2 3 1 5 1 1 1 3 1 4 6 1 4 . 10 1 3 4 4 1 2 16 9 2 . 6 1 2 9 . 19 5 41 8 23 Device 128 | 1 . . 4 . 1 1 . . . 5 1 3 . 6 . 1 4 3 1 2 12 7 2 . 4 1 2 8 . 13 2 26 5 13 Storage 17 | 1 2 . 1 1 . . . . 1 . . . . . . 1 . . . . 1 1 . . . . . . . 1 1 2 1 3 Processor 36 | . . . . . . . 2 1 2 1 . 1 . 3 1 . . 1 . . 3 1 . . 2 . . 1 . 3 . 10 2 2 Hackware 5 | . . . . . . . 1 . 1 . . . . . . 1 . . . . . . . . . . . . . . . 1 . 1 Protection 13 | . 1 1 . . . . . . . . . . . 1 . . . . . . . . . . . . . . . 2 2 2 . 4 Artifact . | . . . . . . . . . . . . . . . . . . . . . . . . . . . . . . . . . . . Weapon 221 | 3 5 . 13 5 . . . 6 6 7 1 4 1 9 9 12 4 9 3 1 11 7 1 1 5 1 . 17 . 27 3 16 8 26 Energy Gun 43 | 2 2 . 2 . . . . . . 1 . 2 . 1 1 1 . . . . . . . . 3 . . 5 . 9 . . . 14 Energy Cannon 20 | . . . 1 . . . . . 1 . . . . 1 1 . . 2 3 . 1 . 1 . . . . . . 4 . 1 . 4 Ballistic Gun 86 | 1 . . 4 3 . . . 3 5 5 1 2 . 1 5 4 . 6 . 1 2 3 . . . 1 . 6 . 11 3 11 5 3 Ballistic Cannon 53 | . 2 . 4 1 . . . . . . . . 1 6 1 7 4 1 . . 7 4 . . 1 . . 6 . 3 . 1 2 2 Launcher 9 | . . . 1 1 . . . 1 . 1 . . . . . . . . . . 1 . . . . . . . . . . 1 . 3 Special Weapon 2 | . . . . . . . . 1 . . . . . . 1 . . . . . . . . . . . . . . . . . . . Impact Weapon 3 | . . . 1 . . . . 1 . . . . . . . . . . . . . . . . . . . . . . . 1 . . Slashing Weapon 2 | . . . . . . . . . . . . . . . . . . . . . . . . . 1 . . . . . . . 1 . Piercing Weapon 2 | . . . . . . . . . . . . . . . . . . . . . . . . 1 . . . . . . . 1 . . Special Melee Weapon 1 | . 1 . . . . . . . . . . . . . . . . . . . . . . . . . . . . . . . . . Unidentified Prototypes 41 | . . . 2 2 1 . . . . . . . . 3 . . . 1 . . 3 2 . . 7 . . . . 1 1 5 3 10 Corrupted Parts 12 | . . . . . . . . . . . . . . . . . . . . . 1 2 1 . 1 . . . . 5 . . . 2 System Corruption 73 | . . . . . . . . . . . . . . . . . . . . . 5 6 5 . 9 . . . . 31 . . . 17 Parts Lost 170 | . 1 . 2 2 . 2 . . . 8 . 7 . 4 6 3 1 1 . 1 4 10 2 . 3 4 . 14 . 25 18 . 18 34 Power 20 | . . . 1 1 . 1 . . . 2 . . . . . 1 1 . . . . . 1 . . 2 . . . 2 1 . 1 6 Propulsion 34 | . . . 1 1 . . . . . . . 1 . . 2 1 . . . 1 . 2 . . 2 2 . 2 . 3 5 . 6 5 Utility 48 | . . . . . . . . . . 1 . 2 . 1 . 1 . 1 . . 1 4 . . 1 . . 6 . 6 6 . 6 12 Weapon 68 | . 1 . . . . 1 . . . 5 . 4 . 3 4 . . . . . 3 4 1 . . . . 6 . 14 6 . 5 11 Highest Loss Streak 10 | . 1 . 1 2 . 2 . . . 3 . 3 . 2 3 3 1 1 . 1 4 10 2 . 3 1 . 3 . 10 8 . 7 6 To Critical Strikes 1 | . . . . . . . . . . . . . . . . . . . . . . . . . . . . 1 . . . . . . Average Backups 18 | 4 14 15 17 24 21 19 19 19 19 19 19 19 19 19 19 19 18 17 18 18 18 18 19 20 19 16 14 18 20 16 12 17 18 20 Power . | . 1 1 . . . . . 1 1 1 1 1 1 1 1 . . 1 1 1 . . 1 1 . . . . 4 . 1 2 1 . Propulsion 1 | 1 4 3 3 3 3 3 2 1 1 2 3 2 2 2 1 1 1 1 1 1 2 2 4 4 2 . 1 . . 1 . 1 1 . Utility 8 | . 3 4 6 7 6 6 5 7 9 10 11 11 11 10 9 8 7 4 5 5 7 9 9 10 10 8 9 10 8 7 7 7 8 10 Weapon 6 | 1 4 5 5 12 10 8 8 7 6 4 3 3 4 5 6 8 7 10 10 10 7 5 2 3 4 6 2 5 7 5 4 5 7 8 Tool/Special . | . . . . . . . . . . . . . . . . . . . . . . . . . . . . . . . . . . . Unused Backups 166 | 1 7 4 12 5 4 . . 2 4 8 1 . 1 6 2 7 2 2 1 . 12 3 2 2 6 . 3 8 . 15 6 12 2 26 Power 13 | . . . 1 . . . . . . 1 . . . 1 1 . . . 1 . 1 . . 1 . . . . . 3 . 3 . . Propulsion 24 | 1 2 2 2 . . . . . 1 3 . . . . . 1 . . . . 5 1 . 1 2 . . . . 1 . . 1 1 Utility 66 | . 3 2 5 4 2 . . . 3 1 . . . 3 1 1 1 1 . . 4 1 2 . 3 . 3 4 . 1 5 5 . 11 Weapon 61 | . 2 . 4 1 2 . . 2 . 3 1 . 1 2 . 5 1 1 . . 2 1 . . . . . 4 . 10 1 4 1 13 Tool/Special 2 | . . . . . . . . . . . . . . . . . . . . . . . . . 1 . . . . . . . . 1 Average Slot Usage (%) 92 | . 99 100 99 99 100 97 99 100 100 99 100 99 100 99 98 99 95 96 100 99 87 89 96 100 90 63 94 91 84 89 79 91 95 79 Engine 3 | . 14 14 10 10 11 8 . 6 9 7 9 9 9 7 4 . . 2 3 5 2 . . . . . 2 . . . . . . . Core 1 | . . . . . . . 9 2 . 1 . . . . . . 1 3 . . . 1 5 5 3 . 5 7 . 2 . . . . Reactor 3 | . . . . . . . . . . . . . . . 2 7 5 . 2 . 3 8 5 5 5 3 . 2 10 7 8 7 7 6 Wheel 14 | . 28 28 21 21 22 22 18 18 18 18 18 18 18 15 13 14 15 13 13 12 12 10 11 11 10 2 7 9 10 8 10 16 15 5 Device 11 | . 7 . 9 10 11 11 8 . . 8 9 9 9 8 4 5 7 17 13 12 12 16 17 17 12 11 14 10 10 19 18 22 21 19 Storage 6 | . 14 14 11 11 11 11 9 9 9 9 9 9 9 7 7 7 7 6 6 6 6 5 5 5 5 5 5 5 5 5 3 3 4 6 Processor 18 | . . . . . . . 17 25 26 18 18 17 18 21 25 24 23 21 26 26 26 23 23 23 27 29 26 29 26 16 7 13 20 16 Energy Gun 2 | . 5 . 1 . . . . . . . . 4 8 1 7 7 . . . . . . . . 4 3 4 1 . 10 6 . . 10 Energy Cannon 1 | . . . 4 . . . . . . 7 8 7 . . 3 . . . 30 . 2 . . 5 2 . . . . 2 2 1 . 1 Ballistic Gun 12 | . 3 . 15 3 . 2 9 27 35 25 27 23 25 10 12 13 3 17 2 32 3 2 16 14 10 6 21 10 5 9 2 18 21 1 Ballistic Cannon 10 | . 18 28 22 40 44 41 27 5 . . . . . 25 13 16 27 11 . . 14 16 7 5 1 . 4 11 11 4 11 1 1 1 Peak Build Rating 219 | 7 8 11 22 34 30 30 34 41 42 46 43 47 44 56 66 64 65 74 79 78 106 123 109 108 128 128 124 125 122 134 153 182 191 219 Average Rating 83 | 5 7 10 19 23 26 27 33 38 40 42 42 44 44 52 58 61 61 69 76 72 93 119 104 106 114 113 121 117 118 103 135 125 177 170 On Entrance 66 | . 7 8 11 21 24 28 30 34 40 42 43 42 44 44 54 64 60 61 68 79 72 106 111 108 107 128 99 123 122 122 134 2 182 122 Naked Turns 23 | . . . . . . . . . . . . . . . . . . . . . . . . . . . . . . . 16 7 . . Heaviest Build 201 | 15 34 34 105 107 107 107 101 103 104 109 106 109 106 119 120 128 138 131 138 127 167 201 164 161 157 142 138 174 170 187 196 150 140 145 Greatest Support 60 | 20 20 20 24 24 24 24 24 24 24 24 24 24 24 24 28 32 32 32 32 32 32 24 20 20 32 32 32 32 32 32 42 50 60 36 Greatest Overweight (x) 47 | . 1 1 4 4 4 4 4 4 4 4 4 4 4 5 9 6 4 4 4 3 6 8 8 8 14 47 44 10 5 10 17 4 3 32 Average Overweight (x) 4 | . . 1 2 3 4 3 4 4 4 4 4 4 4 4 4 3 3 3 4 3 5 7 7 7 6 13 4 5 4 5 5 2 2 7 Largest Inventory Capacity 25 | 8 15 15 25 25 25 25 25 25 25 25 25 25 25 25 25 25 25 25 25 25 25 25 25 25 25 25 25 25 25 25 20 20 20 25 Average Capacity 23 | 7 14 15 18 25 25 25 25 25 25 25 25 25 25 25 25 25 25 25 25 25 25 25 25 25 25 25 25 25 25 23 19 19 20 22 Most Carried 25 | 8 15 15 25 25 25 25 25 25 25 25 25 25 25 25 25 25 25 25 25 25 25 25 25 25 25 25 25 25 25 25 20 20 20 25 Average Carried 22 | 4 14 14 17 24 24 24 24 24 24 24 24 24 24 24 24 24 24 24 24 24 24 23 24 24 24 22 19 24 25 21 18 17 19 21 Final Capacity 25 | 8 15 15 25 25 25 25 25 25 25 25 25 25 25 25 25 25 25 25 25 25 25 25 25 25 25 25 25 25 25 20 5 20 20 25 Final Carried 25 | 8 15 15 25 25 25 25 25 25 24 25 25 24 25 25 25 25 25 25 25 25 25 22 25 25 25 20 25 25 25 20 5 20 19 25 Class Distribution -------------------- 38% | Scavenger-Gunner 25% | Gunner 21% | Scavenger-Executioner 6% | Commander-Gunner 5% | Mutant Dominant Class ---------------- Mutant | -10/Materials Mutant | -10/Mines Gunner | -9/Materials Gunner | -9/Mines Gunner | -9/Exiles Gunner | -8/Mines Gunner | -8/Materials Commander-Gunner | -8/Garrison Gunner | -8/Materials Gunner | -8/Garrison Scavenger-Gunner | -8/Materials Scavenger-Gunner | -8/Garrison Scavenger-Gunner | -8/Materials Gunner | -7/Factory Gunner | -7/Garrison Scavenger-Gunner | -7/Factory Gunner | -7/Garrison Scavenger-Gunner | -6/Factory Pyromaniac-Gunner | -6/Waste Scavenger-Gunner | -6/Factory Scavenger-Gunner | -6/Garrison Scavenger-Gunner | -5/Factory Scavenger-Gunner | -5/Upper Caves Scavenger-Gunner | -5/Upper Caves Scavenger-Gunner | -5/Warlord Gunner | -4/Proximity Caves Scavenger-Executioner | -4/Factory Scavenger-Executioner | -4/Garrison Scavenger-Executioner | -4/Factory Scavenger-Executioner | -4/Garrison Scavenger-Executioner | -3/Research Scavenger-Executioner | -2/Research Scavenger-Executioner | -2/Quarantine Scavenger-Gunner | -2/Protoforge Resources | -11 -10 -10 -9 -9 -9 -8 -8 -8 -8 -8 -8 -8 -8 -7 -7 -7 -7 -6 -6 -6 -6 -5 -5 -5 -5 -4 -4 -4 -4 -4 -3 -2 -2 -2 ----------- Run | Yrd Mat Min Mat Min Exi Min Mat Gar Mat Gar Mat Gar Mat Fac Gar Fac Gar Fac Was Fac Gar Fac Upp Upp War Pro Fac Gar Fac Gar Res Res Qua Frg Matter Collected 49464 | 313 609 142 2139 1742 103 207 65 971 664 1367 66 611 73 1887 1511 1864 1733 1345 80 574 3983 2826 595 157 540 152 203 3421 . 3293 591 2207 4449 8981 Remotely 7662 | . . . . . . . . . . 126 . . . 393 . 303 . 767 . 126 . 1243 . . . 45 . 523 . . . 354 852 2930 Salvage Created 43469 | 168 835 192 2612 224 . 188 39 944 1313 1565 102 1369 114 1662 975 1566 894 1815 1613 481 2410 2228 758 195 838 624 329 2306 . 4165 947 906 4866 4226 Parts 1991 | 14 46 5 166 8 . 11 4 61 70 64 5 73 8 96 46 90 50 85 19 29 92 98 29 10 38 18 18 109 . 145 49 38 210 187 Haulers Intercepted 27 | . 2 . 6 . . . . . 3 . 1 . 1 6 . 1 . 4 . . . 1 . . . . . . . . . 2 . . Recyclers Shooed 11 | . 2 . 2 . . . . . . . . . . 2 . . . 2 . . . 1 . . . . . . . . . 1 1 . Parts Field Recycled . | . . . . . . . . . . . . . . . . . . . . . . . . . . . . . . . . . . . Retrieved Matter . | . . . . . . . . . . . . . . . . . . . . . . . . . . . . . . . . . . . Parts Self-Destructed 25 | . . . . . . . . . . . . . . . . . . . . . . . 14 . . 11 . . . . . . . . Prevented 14 | . . . . . . . . . . . . . . . . . . . . . . . 14 . . . . . . . . . . . Kills | -11 -10 -10 -9 -9 -9 -8 -8 -8 -8 -8 -8 -8 -8 -7 -7 -7 -7 -6 -6 -6 -6 -5 -5 -5 -5 -4 -4 -4 -4 -4 -3 -2 -2 -2 ------- Run | Yrd Mat Min Mat Min Exi Min Mat Gar Mat Gar Mat Gar Mat Fac Gar Fac Gar Fac Was Fac Gar Fac Upp Upp War Pro Fac Gar Fac Gar Res Res Qua Frg Combat Hostiles Destroyed 742 | . 15 1 57 2 . 6 2 31 17 33 1 30 1 28 25 23 34 11 6 7 51 43 9 . 13 8 1 47 . 62 18 6 62 92 Melee 5 | . . . . . . . . . . . . . . . . . . . . . 3 . . . . . . . . . . . . 2 Guns 320 | . 7 . 14 1 . 1 1 15 17 20 1 22 1 4 7 10 4 4 . 7 4 1 3 . 1 1 1 30 . 37 7 5 59 35 Cannons 260 | . 6 1 39 1 . 2 1 6 . 4 . 6 . 20 14 11 13 7 1 . 43 33 1 . . . . 17 . 9 11 1 . 13 AOE 128 | . 2 . 4 . . 3 . 10 . 9 . 2 . 4 3 2 17 . . . . 5 2 . 11 7 . . . 11 . . 3 33 Classes Destroyed 28 | 2 7 1 4 . . 2 . 2 . . . . . . . . . . 1 . 2 . 1 . 1 . . . . . . 1 . 4 Worker 49 | . 2 1 10 1 . . . . 2 . . . . 7 . 3 . 6 . 4 . 5 . . . . 1 . . . 1 3 2 1 Builder 26 | . 1 . 2 . . . . . 2 . . . . 5 . 4 . 3 . . . 4 . . . . . . . . . . 1 4 Tunneler 11 | 4 1 1 . . . . . . . . . . . . . 2 . 1 . . . . . . . . 1 . . . 1 . . . Hauler 27 | . 2 . 6 . . . . . 3 . 1 . 1 6 . 1 . 4 . . . 1 . . . . . . . . . 2 . . Recycler 36 | 1 3 2 6 1 . 1 . . 1 . . . . 4 . 4 . 5 . . . 3 . . . . 2 . . . . 2 1 . Mechanic 9 | . . . 1 . . . . . 1 . . . . . . 1 . . . . . 2 . . . . . . . . . . . 4 Operator 8 | . 1 . 2 . . . 1 . . . . . . . . 2 . 1 . . . . . . . . . . . . . . 1 . Drone 4 | . . . . . . . . . . . . . . . . . . . . . . . . . . . . . . . . . . 4 Watcher 15 | . 3 . 4 . . . . 1 . . . . . . . . . . . 1 1 1 . . . . . 1 . . . . 2 1 Swarmer 143 | . 7 . 15 . . 3 2 14 . 4 . 5 . . 8 . 21 . . 3 11 4 1 . 1 . . 17 . 25 1 1 . . Saboteur 11 | . . . . . . . . . . . . . . . . . . . . . 7 . . . . . . . . . . . 1 3 Grunt 286 | . 8 . 29 1 . 2 . 7 9 17 1 13 . 19 7 15 7 4 . 1 17 20 1 . . 7 . 19 . 13 8 . 27 34 Brawler 33 | . . . 2 . . . . 1 1 3 . 1 . . 1 . . 1 . . . 5 2 . 2 . . 2 . 2 . . 2 8 Duelist 30 | . . . . . . 1 . 1 2 1 . 1 . . 1 1 . . . . 3 4 2 . 1 . . 2 . 4 . . 2 4 Protector 12 | . . . 1 . . . . . 1 . . . . . 1 1 . . . . . 3 . . 1 . . . . . . . 2 2 Researcher 1 | . . . . . . . . . . . . . . . . . . . . . . . . . . . . . . . . . . 1 Sentry 88 | . . . 10 . . . . 6 5 4 . 4 1 3 5 2 4 2 . 1 8 1 2 . . 1 . 4 . 8 . . 9 8 Demolisher 2 | . . 1 . . . . . . . . . . . . . . . . . . . . . . . . . . . . 1 . . . Specialist 4 | . . . . . . . . 1 . . . . . . . . . . . . 1 . . . . . . . . 1 1 . . . Hunter 36 | . . . . . . 1 . . . 1 . 2 . 1 1 2 . 2 . 2 . 3 1 . 1 . . 1 . 5 4 2 3 4 Programmer 68 | . . . . . . . . 1 . 3 . 3 . 5 1 2 2 2 . . 3 3 . . 6 . 1 . . 4 3 . 16 13 Behemoth 4 | . . . . . . . . . . . . . . . . . . . . . 1 . . . . . . 2 . 1 . . . . Compactor 6 | . . . . . . . . . . . . . . . . . . . 6 . . . . . . . . . . . . . . . Hotshot 5 | . . . . . . . . . . . . . . . . . . . . . . . . . . . . . . . . . . 5 Decapitator 3 | . . . . . . . . . . . . . . . . . . . . . . . . . . . . . . . . . . 3 Striker 2 | . . . . . . . . . . . . . . . . . . . . . . . . . . . . . . . . 2 . . Executioner 2 | . . . . . . . . . . . . . . . . . . . . . . . . . 1 . . . . . . 1 . . V-Series 4 | . . . . . . . . . . . . . . . . . . . . . . . . . . . . . . . . . . 4 Decomposer 3 | . . . . . . . . . . . . . . . . . . . . . . . . 3 . . . . . . . . . . Samaritan 6 | . . . . . . . . . . . . . . . . . . . . . . . 3 3 . . . . . . . . . . Thug 1 | . . . . . . . . . . . . . . . . 1 . . . . . . . . . . . . . . . . . . Butcher 1 | . . . . . . . . 1 . . . . . . . . . . . . . . . . . . . . . . . . . . Guerrilla 1 | . . . . . . . . . . . . 1 . . . . . . . . . . . . . . . . . . . . . . Best Kill Streak 17 | 5 4 2 17 1 . 3 3 9 4 9 2 6 1 7 5 12 7 15 3 6 5 12 7 . 13 4 1 15 . 10 15 4 9 16 Combat Bots Only 16 | . 4 1 16 1 . 3 2 9 4 9 1 6 1 4 5 7 7 4 3 3 5 9 7 . 13 4 1 15 . 10 14 3 9 14 Max Kills in Single Turn 6 | 1 2 2 4 1 . 2 1 4 2 2 1 2 1 5 2 3 4 3 1 2 2 5 2 1 6 1 1 3 . 4 1 1 3 4 Gunslinging 2 | . . . 1 . . . . . 1 . . 1 . . . . . . . . . . . . . . . 2 . 1 . . 1 1 Exploded 6 | . 2 . 3 . . 2 . 4 . 2 . 2 . 2 2 2 4 . . . . 3 1 . 6 1 . . . 4 . . 3 4 Melee 1 | . . . . . . . . . . . . . . . . . . . . . 1 . . . . . . . . . . . . 1 Uniques/NPCs Destroyed 1 | . . . . 1 . . . . . . . . . . . . . . . . . . . . . . . . . . . . . . YI-UF0 (-9/Mines) Combat | -11 -10 -10 -9 -9 -9 -8 -8 -8 -8 -8 -8 -8 -8 -7 -7 -7 -7 -6 -6 -6 -6 -5 -5 -5 -5 -4 -4 -4 -4 -4 -3 -2 -2 -2 -------- Run | Yrd Mat Min Mat Min Exi Min Mat Gar Mat Gar Mat Gar Mat Fac Gar Fac Gar Fac Was Fac Gar Fac Upp Upp War Pro Fac Gar Fac Gar Res Res Qua Frg Hostile Shots Fired 3631 | . 52 . 173 12 . 31 14 52 34 118 3 90 . 127 158 112 82 98 . 43 291 230 14 . 79 54 4 230 . 292 447 20 343 428 Missed 1128 | . 19 . 37 1 . 5 5 12 5 29 . 23 . 47 56 48 25 36 . 10 94 65 3 . 25 22 2 65 . 100 143 9 113 129 Hits 2503 | . 33 . 136 11 . 26 9 40 29 89 3 67 . 80 102 64 57 62 . 33 197 165 11 . 54 32 2 165 . 192 304 11 230 299 Melee 53 | . . . 1 . . . . . 4 4 . . . . 1 . . . . . 13 8 . . . . . 2 . 2 6 . 6 6 Projectile 2450 | . 33 . 135 11 . 26 9 40 25 85 3 67 . 80 101 64 57 62 . 33 184 157 11 . 54 32 2 163 . 190 298 11 224 293 AOE 17 | . . . . 8 . . . . . . . . . . 7 1 . . . . . . . . . . . . . . . 1 . . Critical Strikes 114 | . 1 . 2 . . . 1 1 2 7 . 1 . 2 . 2 2 1 . 1 2 11 . . 2 1 . 11 . 7 11 1 15 30 Actively Blocked 42 | . . . . . . . . . . . . . . . . . . . . . . . . . . . . . . . . . 12 30 Part Disruptions 8 | . . . . . . . . . . 1 . . . . . . . . . . . . 1 . . . . . . 1 2 . 1 2 Damage Taken 42989 | . 303 . 1482 329 . 333 76 639 641 1271 44 951 . 1140 1288 898 804 843 . 458 2567 2484 234 . 811 731 43 3305 . 3336 6023 221 4232 7502 Core 4989 | . 74 . 207 93 . 31 . 109 94 180 . 150 . 109 111 113 106 75 . 45 508 217 42 . 136 162 . 487 . 204 587 45 452 652 Absorbed by Shields 3764 | . . . . . . . . . . 40 . . . . . . 17 . . . 70 964 86 . 186 . . 16 . 143 364 150 1525 203 Redirected to Shielding 285 | . . . . . . . . . . . . . . . . . . . . . . . . . . . . . . . . . . 285 Ignored by Resistances 171 | . . . . . . . . . . . . . . . . . . . . . . . . . . . . . . 97 . . . 74 Regen/Repaired (Parts) 2255 | . 53 . 91 . . . . . . . . . . 35 . . . . . . . . . . 20 . . . . . . 6 374 1676 Core Remaining (%) 43 | 100 . 70 . . . 17 . . . . . . 3 . . . 37 . . . 26 . . . . 44 . . . 39 54 . . . Volleys Fired 1979 | 11 81 9 123 8 1 11 7 54 41 161 4 70 4 72 55 49 98 32 15 18 263 73 13 . 7 12 7 100 . 237 45 27 111 160 Largest 6 | 2 2 2 4 4 4 4 4 4 4 4 4 4 4 5 5 5 5 5 5 5 5 5 5 . 1 4 4 6 . 6 6 6 6 6 Hottest 625 | 60 80 60 148 132 132 132 122 122 97 206 159 199 137 187 211 168 188 185 175 156 194 219 249 . 300 300 147 284 . 486 424 233 240 625 Shots Fired 5938 | 22 129 18 472 32 5 36 28 171 158 314 16 188 16 353 218 223 189 143 76 91 449 202 57 . 7 19 28 405 . 607 166 101 552 447 Gun 3372 | 22 77 . 184 12 . 3 7 127 157 195 12 127 16 121 72 106 22 89 . 90 54 16 35 . 7 19 28 264 . 473 85 74 526 352 Cannon 2144 | . 52 18 286 20 5 30 21 39 1 35 4 59 . 229 144 115 122 54 76 1 225 180 19 . . . . 141 . 70 81 27 23 67 Launcher 93 | . . . 2 . . 3 . 5 . 13 . 2 . 3 2 2 12 . . . . 6 3 . . . . . . 9 . . 3 28 Special 329 | . . . . . . . . . . 71 . . . . . . 33 . . . 170 . . . . . . . . 55 . . . . Kinetic 4324 | 11 89 18 407 32 5 33 28 166 157 171 12 116 12 335 139 184 143 140 . 90 219 196 54 . . 8 28 379 . 298 139 84 547 84 Thermal 1446 | 11 2 . 63 . . . . . 1 130 4 64 4 15 77 37 34 3 76 1 230 . . . 7 11 . 21 . 274 27 17 2 335 Explosive 66 | . . . 2 . . 3 . 5 . 13 . 2 . 3 2 2 12 . . . . . . . . . . . . . . . 3 19 Electromagnetic 71 | . 38 . . . . . . . . . . 6 . . . . . . . . . 6 3 . . . . . . 9 . . . 9 Entropic 31 | . . . . . . . . . . . . . . . . . . . . . . . . . . . . 5 . 26 . . . . Robot Hit Streak 46 | 9 8 3 10 6 4 5 5 32 21 46 5 13 3 10 13 8 19 13 10 9 33 7 6 . 8 21 9 14 . 39 19 9 12 33 Robot Miss Streak 15 | 2 5 1 5 2 1 2 10 5 4 5 4 7 2 7 15 13 8 4 3 4 7 3 7 . 4 3 3 6 . 5 7 4 10 4 Penetration Max 2 | . . . . . . . . . 1 1 . 1 . 1 . 1 1 2 . 1 1 1 . . . . . 1 . 1 1 1 2 1 Secondary Targets 48 | . . . 3 . . . . . 4 1 . 2 . . . . . 2 . 1 . . . . . . . 5 . 8 . . 12 10 Max Gunslinging Chain 2 | . . . 1 . . . . . 1 1 . 1 . . . . . 1 . 1 . . . . . . . 2 . 2 . . 2 1 Shots Hit Robots 3073 | 17 71 10 209 16 3 17 9 94 100 187 9 90 8 143 103 89 70 72 48 40 278 94 22 7 7 15 14 179 . 382 97 39 255 279 Core Hits 1820 | 6 29 6 108 9 . 10 3 51 51 85 4 52 4 79 60 83 65 48 12 24 139 85 28 3 40 29 8 98 . 205 40 26 156 174 Critical Kills 71 | . . . . . . . . 4 3 3 1 2 . 1 2 . 2 7 3 6 1 1 2 . . . . 9 . . . 1 18 5 Critical Parts Destroyed 66 | . . . 1 . . . . 2 2 3 . 1 . 4 . 3 . 13 . 7 . . 3 . . . . 4 . 10 2 2 8 1 Critical Strikes 314 | . 4 1 8 1 . 2 . 6 6 17 1 4 . 15 12 7 5 23 3 13 35 25 6 2 . . . 20 . 27 5 6 27 33 Burn 41 | . . . 1 . . . . . . . . . . . 5 2 . . . . . . . . . . . 1 . 10 . . . 22 Meltdown 7 | . . . . . . . . . . . . . . . 1 . . . 3 . . . . . . . . . . . . . . 3 Destroy 134 | . . . 1 . . . . 6 6 6 1 3 . 5 1 3 2 21 . 13 1 1 5 . . . . 14 . 8 2 3 27 5 Blast 94 | . 4 1 6 1 . 2 . . . . . . . 10 5 2 3 2 . . 17 24 1 . . . . 5 . 2 3 3 . 3 Corrupt 1 | . . . . . . . . . . . . 1 . . . . . . . . . . . . . . . . . . . . . . Sever 33 | . . . . . . . . . . 11 . . . . . . . . . . 17 . . . . . . . . 5 . . . . Impale 2 | . . . . . . . . . . . . . . . . . . . . . . . . 2 . . . . . . . . . . Detonate 2 | . . . . . . . . . . . . . . . . . . . . . . . . . . . . . . 2 . . . . Melee Attacks 44 | . . . 4 . . . . 13 . 7 . 1 . . . . . . . . . . . 7 . . . . . . . . 1 11 Impact 25 | . . . 4 . . . . 13 . 7 . 1 . . . . . . . . . . . . . . . . . . . . . . Slashing 12 | . . . . . . . . . . . . . . . . . . . . . . . . . . . . . . . . . 1 11 Piercing 7 | . . . . . . . . . . . . . . . . . . . . . . . . 7 . . . . . . . . . . Sneak Attacks 9 | . . . . . . . . . . . . . . . . . . . . . . . . 7 . . . . . . . . . 2 Combat Hostiles . | . . . . . . . . . . . . . . . . . . . . . . . . . . . . . . . . . . . Follow-up Attacks . | . . . . . . . . . . . . . . . . . . . . . . . . . . . . . . . . . . . Damage Inflicted 113546 | 211 1240 204 4585 299 60 447 176 2234 1673 4104 182 2210 127 3889 2427 2983 3045 2383 1732 694 8840 8085 1228 501 2323 1416 392 6002 . 9821 3908 1575 11573 22977 Guns 43965 | 211 524 . 1317 89 . 30 75 1138 1673 1835 120 1403 127 1001 693 1292 182 743 . 694 426 148 397 . 76 175 392 3463 . 6252 1822 1078 10231 6358 Cannons 38083 | . 612 204 3004 210 60 323 101 513 . 304 62 575 . 2344 1609 1161 1233 1440 1732 . 6659 6435 177 . . . . 2539 . 1104 2076 497 171 2938 Explosions 27329 | . 104 . 264 . . 94 . 583 . 1231 . 232 . 544 125 530 1303 200 . . . 1502 654 . 2247 1241 . . . 1893 . . 1171 13411 Melee 771 | . . . . . . . . . . . . . . . . . . . . . . . . 501 . . . . . . . . . 270 Ramming 10 | . . . . . . . . . . . . . . . . . . . . . . . . . . . . . . . 10 . . . Kinetic 62544 | 133 834 204 3590 299 60 353 176 1651 1673 1618 120 1333 77 3151 1471 2014 1415 2075 . 694 5960 6583 574 . . 136 392 5638 . 3137 3346 1269 10402 2166 Thermal 26760 | 78 116 . 731 . . . . . . 1255 62 609 50 194 831 439 327 108 1732 . 2880 876 . . 2323 1280 . 216 . 4665 552 306 . 7130 Explosive 18382 | . . . 264 . . 94 . 583 . 1231 . 232 . 544 125 530 1303 200 . . . . . . . . . . . . . . 1171 12105 Electromagnetic 4108 | . 290 . . . . . . . . . . 36 . . . . . . . . . 626 654 . . . . . . 1196 . . . 1306 Impact . | . . . . . . . . . . . . . . . . . . . . . . . . . . . . . . . . . . . Slashing 270 | . . . . . . . . . . . . . . . . . . . . . . . . . . . . . . . . . . 270 Piercing 501 | . . . . . . . . . . . . . . . . . . . . . . . . 501 . . . . . . . . . . Entropic 971 | . . . . . . . . . . . . . . . . . . . . . . . . . . . . 148 . 823 . . . . Highest Corruption 70 | . . . 6 6 6 6 . . . 8 8 10 10 7 7 7 8 . 17 17 18 9 14 14 14 3 . . . 33 15 1 18 70 Average Corruption 10 | . . . 2 6 6 6 . . . 7 8 9 10 5 7 7 7 . 9 12 14 2 12 14 8 3 . . . 21 8 1 10 37 Corruption Purged 8 | . . . . . . . . . . . . . . . . . . . . 7 . . . . . . . . . . . 1 . . Corruption Blocked . | . . . . . . . . . . . . . . . . . . . . . . . . . . . . . . . . . . . Effects 995 | . . . 30 20 14 6 . . . 65 2 43 7 37 30 46 61 . 7 21 162 8 39 29 2 36 . . . 116 15 16 53 130 Message Errors 199 | . . . 7 1 3 . . . . 17 2 9 2 4 7 10 12 . 4 5 39 2 4 7 . 11 . . . 20 2 5 9 17 Matter Fused 221 | . . . 12 6 3 . . . . 20 . 9 1 7 9 6 13 . . 7 33 . 8 7 . 2 . . . 25 3 6 9 35 Heat Flow Errors 123 | . . . 1 1 2 1 . . . 9 . 4 . 6 5 10 10 . 1 3 24 3 6 8 . 5 . . . 8 1 1 2 12 Energy Discharges 117 | . . . 3 6 2 2 . . . 3 . 7 3 4 1 2 9 . . 1 23 . 8 2 2 4 . . . 12 1 . 8 14 Parts Rejected 12 | . . . . . . . . . . . . . . 2 1 1 . . 1 1 1 . . . . . . . . 2 . . 1 2 Parts Fused 12 | . . . 1 . 1 . . . . 1 . 1 . . . 1 1 . . . 2 . 1 . . . . . . 1 . . 1 1 Data Loss (minor) 109 | . . . 2 3 1 1 . . . 10 . 2 . 5 4 6 6 . . 1 17 3 4 3 . 10 . . . 12 . 2 1 16 Data Loss (major) 39 | . . . 1 . . 1 . . . 2 . 2 . 2 2 1 2 . . . 7 . 3 2 . 3 . . . 4 1 1 2 3 Misfires 39 | . . . 1 1 1 1 . . . 1 . 4 . 1 . 1 4 . 1 2 6 . 5 . . 1 . . . 5 . 1 1 2 Alerts 17 | . . . 2 1 1 . . . . 1 . . 1 . . 2 . . . . 2 . . . . . . . . . 2 . 3 2 Misdirections 4 | . . . . . . . . . . . . . . . . . . . . . 1 . . . . . . . . . . . 2 1 Weapon Failures 103 | . . . . 1 . . . . . 1 . 5 . 6 1 6 4 . . 1 7 . . . . . . . . 27 5 . 14 25 Overload Shots . | . . . . . . . . . . . . . . . . . . . . . . . . . . . . . . . . . . . Overflow Damage 4673 | . . . 19 . . . 8 18 . 11 . 2 . 31 5 39 38 130 . . 696 600 6 269 30 13 . 26 . 199 91 . 89 2353 Projectiles 1839 | . . . 19 . . . 8 . . . . 2 . 31 5 39 34 96 . . 696 478 . . . . . 26 . 199 91 . . 115 Explosions 2482 | . . . . . . . . 18 . 11 . . . . . . 4 34 . . . 122 6 . 30 13 . . . . . . 89 2155 Melee 352 | . . . . . . . . . . . . . . . . . . . . . . . . 269 . . . . . . . . . 83 Knockbacks 189 | . 5 2 16 . 1 4 1 1 . . . . . 18 8 9 9 2 . . 18 45 . . . . . 17 . 4 16 1 1 11 Impact . | . . . . . . . . . . . . . . . . . . . . . . . . . . . . . . . . . . . Kinetic 168 | . 5 2 15 . 1 4 1 1 . . . . . 16 7 8 8 2 . . 16 37 . . . . . 15 . 3 15 1 1 10 Secondary 21 | . . . 1 . . . . . . . . . . 2 1 1 1 . . . 2 8 . . . . . 2 . 1 1 . . 1 Self-Inflicted Damage 688 | . . . . . . 32 . 79 . 2 . . . 42 . . . 123 . . . 173 22 . . 43 . . . 46 4 . 90 32 Shots 27 | . . . . . . 1 . 2 . 1 . . . 1 . . . 2 . . . 8 2 . . 2 . . . 6 . . 1 1 Rammed 4 | . . . . . . . . . . . . . . . . . . . . . . . . . . . . . . . 4 . . . Targets Rammed 4 | . . . . . . . . . . . . . . . . . . . . . . . . . . . . . . . 4 . . . Kicked . | . . . . . . . . . . . . . . . . . . . . . . . . . . . . . . . . . . . Crushed . | . . . . . . . . . . . . . . . . . . . . . . . . . . . . . . . . . . . Highest Temperature 488 | . 102 9 325 166 264 162 12 138 107 289 84 342 21 237 244 290 249 42 121 255 285 359 98 73 474 342 10 488 . 408 377 196 473 474 Average Temperature 72 | . 33 4 67 48 94 85 5 32 27 72 46 71 14 57 47 68 79 17 11 74 100 72 63 37 198 121 7 120 . 100 157 30 65 99 Received Heat Transfer 8081 | . 78 . 519 21 . 108 . 171 225 459 27 288 . 357 246 417 93 165 . 63 599 690 18 . . 171 . 858 . 312 928 . 518 750 Effects 28 | . . . 5 . . . . . . 2 . . . . . 1 . . . . . 2 . . 3 . . 3 . 1 2 . 3 6 Shutdowns 4 | . . . . . . . . . . . . . . . . . . . . . . . . . . . . 1 . 1 1 . . 1 Energy Bleed 4 | . . . 2 . . . . . . . . . . . . 1 . . . . . . . . . . . . . . . . . 1 Interference 14 | . . . 3 . . . . . . 2 . . . . . . . . . . . 2 . . . . . 2 . . . . 2 3 Matter Decay 1 | . . . . . . . . . . . . . . . . . . . . . . . . . . . . . . . . . . 1 Short Circuit 1 | . . . . . . . . . . . . . . . . . . . . . . . . . . . . . . . 1 . . . Damage (minor) 1 | . . . . . . . . . . . . . . . . . . . . . . . . . . . . . . . . . 1 . Damage (major) 3 | . . . . . . . . . . . . . . . . . . . . . . . . . 3 . . . . . . . . . Siege Activations . | . . . . . . . . . . . . . . . . . . . . . . . . . . . . . . . . . . . Martial Activations . | . . . . . . . . . . . . . . . . . . . . . . . . . . . . . . . . . . . Shielding Activations . | . . . . . . . . . . . . . . . . . . . . . . . . . . . . . . . . . . . Robots Disrupted . | . . . . . . . . . . . . . . . . . . . . . . . . . . . . . . . . . . . Combat Hostiles . | . . . . . . . . . . . . . . . . . . . . . . . . . . . . . . . . . . . Robots Corrupted 14 | . . . . . . . . . . . . . . . . . . . . . . 4 3 . . . . . . 2 . . . 5 Combat Hostiles 13 | . . . . . . . . . . . . . . . . . . . . . . 4 3 . . . . . . 2 . . . 4 Parts Fried 27 | . . . . . . . . . . . . . . . . . . . . . . 6 5 . . . . 1 . 6 . . . 9 Impact Corruptions 4 | . . . . . . . . . . . . . . . . . . . . . 1 2 . . . . . 1 . . . . . . Robots Melted 16 | . . . . . . . . . . . . . . . 1 . . . 5 . 1 . . . 1 . . . . 5 . . . 3 Combat Hostiles 14 | . . . . . . . . . . . . . . . 1 . . . 5 . 1 . . . 1 . . . . 3 . . . 3 Parts Melted 71 | . . . 1 . . . . . . 1 . . . . 2 . . 1 13 . 5 1 . . 14 5 . . . 19 1 . . 8 Heat Transferred 45263 | 175 137 . 1406 . . . . . . 3299 74 740 111 370 1752 999 1110 150 2700 . 7454 551 . . 2738 1683 . 407 . 8437 629 259 . 10082 Parts Sabotaged 11 | . . . . . . . . . . . . . . . . . . . . . 11 . . . . . . . . . . . . . Parts Stolen . | . . . . . . . . . . . . . . . . . . . . . . . . . . . . . . . . . . . Parts Stripped . | . . . . . . . . . . . . . . . . . . . . . . . . . . . . . . . . . . . Power Chain Reactions 11 | . 1 . . . . . . . . . . . . . . . . . . . . 2 . . . . . . . 8 . . . . Alert | -11 -10 -10 -9 -9 -9 -8 -8 -8 -8 -8 -8 -8 -8 -7 -7 -7 -7 -6 -6 -6 -6 -5 -5 -5 -5 -4 -4 -4 -4 -4 -3 -2 -2 -2 ------- Run | Yrd Mat Min Mat Min Exi Min Mat Gar Mat Gar Mat Gar Mat Fac Gar Fac Gar Fac Was Fac Gar Fac Upp Upp War Pro Fac Gar Fac Gar Res Res Qua Frg Maximum Alert Level 5 | . 1 . 4 2 . . . 5 4 5 3 4 3 3 4 3 5 4 2 1 5 5 . . . . . 5 3 5 5 4 5 5 Low Security (%) 10 | 100 51 100 16 23 . 100 100 10 . . . . . . . . . . . 66 . . . . . . 100 4 . . . . . . Level 1 10 | . 48 . 27 61 . . . 17 . . . . . 52 . . . . 71 33 11 . . . . . . 6 . . . . . . Level 2 9 | . . . 31 14 . . . 3 . 4 . 12 30 44 16 26 9 . 28 . 10 . . . . . . 11 . . . . 10 . Level 3 25 | . . . 11 . . . . 14 99 13 100 30 69 3 38 73 29 51 . . 16 . . . . . . 29 100 13 . 93 28 . Level 4 20 | . . . 11 . . . . 45 . 45 . 56 . . 44 . 37 48 . . 20 . . . . . . 37 . 22 . 6 6 45 Level 5 21 | . . . . . . . . 9 . 36 . . . . . . 23 . . . 41 100 . . . . . 10 . 64 72 . 37 54 High Security 1 | . . . . . . . . . . . . . . . . . . . . . . . . . . . . . . . 27 . 16 . Max Security . | . . . . . . . . . . . . . . . . . . . . . . . . . . . . . . . . . . . Sterilizations 1 | . . . 1 . . . . . . . . . . . . . . . . . . . . . . . . . . . . . . . Peak Influence 3500 | 10 264 93 1207 460 . 125 41 1883 1109 2101 1023 1514 737 769 1365 1081 1933 1223 422 356 3500 2765 . . . . 53 1964 1045 3118 2091 1171 2501 2957 Initial 1837 | . . 93 . 460 . . 12 . 917 611 1023 568 737 315 538 716 600 1014 422 217 259 1837 . . . . . 14 1031 731 1753 1171 417 1375 Average 1101 | 1 133 11 503 288 . 64 13 1030 939 1456 941 1076 707 415 1011 751 1223 1068 370 196 1590 2112 . . . . 6 1098 1030 1932 1772 860 1573 1950 Influence Increases 30860 | 25 582 55 1811 64 . 202 57 1963 595 1590 72 1056 46 1062 887 982 1363 565 18 369 3421 1486 200 . 245 180 100 2110 44 2737 1342 254 2845 2532 Destroy 0b10 Robot/C 15720 | . 300 20 1120 20 . 140 40 960 340 740 40 680 20 560 480 440 700 220 . 140 1160 800 180 . 240 160 20 980 . 1360 800 120 1200 1740 Destroy 0b10 Robot/NC 1160 | 25 65 25 160 10 . 5 5 5 60 20 5 . 5 110 10 90 10 100 . 25 55 95 . . 5 . 20 5 . 55 25 35 45 85 Destroy Leader 2010 | . 70 10 250 . . 20 10 20 108 40 12 50 12 152 40 112 60 68 . 42 70 134 10 . . 20 10 60 . 90 110 24 174 232 Allied During Kill 983 | . . . . . . 14 . 257 28 74 14 38 . . . . 12 . . . 136 . 10 . . . . 23 . 136 241 . . . Trap Triggered on 0b10 10 | . 10 . . . . . . . . . . . . . . . . . . . . . . . . . . . . . . . . . Successful Hack 415 | . 56 . 64 . . . . 21 10 . . 7 8 8 28 21 58 9 . 14 14 . . . . . 19 . 14 32 . . 4 28 Select Force Hacks 60 | . 60 . . . . . . . . . . . . . . . . . . . . . . . . . . . . . . . . . Disable Machine 1545 | . . . 60 . . . . 15 45 30 . . . 75 30 90 90 105 . 90 90 180 . . . . 15 90 30 30 15 15 315 135 Anti-Garrison Action 5450 | . . . . . . . . 600 . 550 . 200 . . 250 150 300 . . . 1800 . . . . . . 850 . 750 . . . . Destroy Structure 2697 | . 6 . 37 4 . 23 2 70 4 76 1 6 1 52 19 64 133 63 18 28 66 232 . . . . 16 102 . 239 76 45 1017 297 Partial Spotted 75 | . 15 . . . . . . . . . . . . . . . . . . . . . . . . . . . . . 60 . . . Lose Combat Pursuer 735 | . . . 120 30 . . . 15 . 60 . 75 . 105 30 15 . . . 30 30 45 . . . . . . . 45 15 15 90 15 Influence Decreases 27909 | 25 342 295 629 1060 186 170 88 81 1538 429 1298 417 867 986 291 1489 288 1291 915 309 291 2245 1427 599 954 386 79 167 963 664 2377 1594 1142 2027 Entered New Map 16973 | . . 147 . 722 186 . 20 1 966 329 1078 307 777 378 231 649 258 919 785 93 111 1663 1015 289 915 206 . 7 933 314 1365 912 326 1071 Time Decay 7366 | 25 332 148 609 318 . 110 68 . 362 . 50 . 90 568 . 510 . 362 130 206 . 482 392 310 9 170 79 . 30 . 222 682 486 616 Lost Part 1670 | . 10 . 20 20 . 20 . . . 80 . 70 . 40 60 30 10 10 . 10 40 100 20 . 30 10 . 140 . 250 180 . 180 340 Lost Ally 1000 | . . . . . . 40 . 80 60 20 20 40 . . . . 20 . . . 140 . . . . . . 20 . 100 460 . . . Purge Threat 900 | . . . . . . . . . 150 . 150 . . . . 300 . . . . . . . . . . . . . . 150 . 150 . Squads Dispatched 120 | . 4 . 10 . . . . . 4 . 1 . . 10 . 17 . 3 . 3 . 12 . . . . 2 . 1 . 10 . 26 17 Investigation 16 | . 3 . 1 . . . . . . . . . . 1 . 3 . . . 1 . 1 . . . . 1 . 1 . 1 . 2 1 Extermination 22 | . . . . . . . . . . . . . . 5 . 2 . 1 . 1 . 2 . . . . 1 . . . 1 . 4 5 Reinforcement 20 | . 1 . 4 . . . . . 1 . . . . 3 . 6 . 1 . . . 1 . . . . . . . . 1 . 2 . Assault 52 | . . . 5 . . . . . 3 . . . . 1 . 4 . 1 . . . 8 . . . . . . . . 7 . 12 11 Garrison 10 | . . . . . . . . . . . 1 . . . . 2 . . . 1 . . . . . . . . . . . . 6 . Intercept . | . . . . . . . . . . . . . . . . . . . . . . . . . . . . . . . . . . . Searches Triggered . | . . . . . . . . . . . . . . . . . . . . . . . . . . . . . . . . . . . Construction Impeded 7 | . . . 2 . . . . . 1 . . . . 1 . 2 . 1 . . . . . . . . . . . . . . . . Haulers Reinforced 3 | . . . . . . . . . . . . . . 2 . 1 . . . . . . . . . . . . . . . . . . Active Scanning Responses . | . . . . . . . . . . . . . . . . . . . . . . . . . . . . . . . . . . . Cargo Convoy Interrupts . | . . . . . . . . . . . . . . . . . . . . . . . . . . . . . . . . . . . Stealth | -11 -10 -10 -9 -9 -9 -8 -8 -8 -8 -8 -8 -8 -8 -7 -7 -7 -7 -6 -6 -6 -6 -5 -5 -5 -5 -4 -4 -4 -4 -4 -3 -2 -2 -2 --------- Run | Yrd Mat Min Mat Min Exi Min Mat Gar Mat Gar Mat Gar Mat Fac Gar Fac Gar Fac Was Fac Gar Fac Upp Upp War Pro Fac Gar Fac Gar Res Res Qua Frg Distress Signals 22 | . . . 3 . . . . . 1 . 1 . . 4 . 2 . . . . . . . . . . . . . . . 7 2 2 Communications Jammed . | . . . . . . . . . . . . . . . . . . . . . . . . . . . . . . . . . . . Distress Signals . | . . . . . . . . . . . . . . . . . . . . . . . . . . . . . . . . . . . Times Spotted 971 | . 29 1 86 4 . 7 6 33 20 34 3 34 2 47 28 41 28 15 6 11 68 56 9 . 15 8 1 52 . 72 58 24 75 98 Peak Tracking Total 14 | . 4 . 10 3 . 4 2 7 5 6 3 8 1 5 5 6 7 4 3 3 6 10 7 . 14 4 1 8 . 9 12 7 6 10 Tactical Retreats 34 | . . . 5 1 . . . 1 . 1 . 3 . 6 1 1 . . . 2 2 2 . . . . . . . 3 1 1 3 1 Traps | -11 -10 -10 -9 -9 -9 -8 -8 -8 -8 -8 -8 -8 -8 -7 -7 -7 -7 -6 -6 -6 -6 -5 -5 -5 -5 -4 -4 -4 -4 -4 -3 -2 -2 -2 ------- Run | Yrd Mat Min Mat Min Exi Min Mat Gar Mat Gar Mat Gar Mat Fac Gar Fac Gar Fac Was Fac Gar Fac Upp Upp War Pro Fac Gar Fac Gar Res Res Qua Frg Traps Triggered 72 | . 2 . 5 . . . . 5 . 6 . 7 . 1 . 3 4 1 . . 12 1 1 . . . . 9 . 8 . . 3 4 Indirectly 2 | . . . . . . . . . . . . . . . . . . . . . . . . . . . . . . 1 . . . 1 Trap Hack Attempts 19 | . 16 . 3 . . . . . . . . . . . . . . . . . . . . . . . . . . . . . . . Triggered . | . . . . . . . . . . . . . . . . . . . . . . . . . . . . . . . . . . . Disarmed . | . . . . . . . . . . . . . . . . . . . . . . . . . . . . . . . . . . . Reprogrammed 3 | . 2 . 1 . . . . . . . . . . . . . . . . . . . . . . . . . . . . . . . Reused 1 | . 1 . . . . . . . . . . . . . . . . . . . . . . . . . . . . . . . . . Traps Extracted . | . . . . . . . . . . . . . . . . . . . . . . . . . . . . . . . . . . . Installed . | . . . . . . . . . . . . . . . . . . . . . . . . . . . . . . . . . . . Triggered 1 | . 1 . . . . . . . . . . . . . . . . . . . . . . . . . . . . . . . . . Machines | -11 -10 -10 -9 -9 -9 -8 -8 -8 -8 -8 -8 -8 -8 -7 -7 -7 -7 -6 -6 -6 -6 -5 -5 -5 -5 -4 -4 -4 -4 -4 -3 -2 -2 -2 ---------- Run | Yrd Mat Min Mat Min Exi Min Mat Gar Mat Gar Mat Gar Mat Fac Gar Fac Gar Fac Was Fac Gar Fac Upp Upp War Pro Fac Gar Fac Gar Res Res Qua Frg Machines Disabled 169 | . . . 6 . . . . 9 3 6 . 3 . 5 8 7 11 7 . 6 17 12 1 . 1 . 1 15 2 8 1 1 22 17 Max in Single Turn 5 | . . . 1 . . . . 1 2 1 . 1 . 1 2 5 2 2 . 4 1 4 1 . 1 . 1 1 1 2 1 1 2 2 Garrison Access 4 | . . . . . . . . . . . . . . . . 2 . . . . . . . . . . . . . . . 2 . . Garrison Relay 40 | . . . . . . . . 7 . 4 . 3 . . 4 . 4 . . . 8 . . . . . . 6 . 4 . . . . Phase Generator 5 | . . . . . . . . 1 . . . . . . 1 . . . . . 1 . . . . . . 1 . 1 . . . . Machines Repaired . | . . . . . . . . . . . . . . . . . . . . . . . . . . . . . . . . . . . Machines Dismantled 10 | . . . . . . . . 1 . 1 . . . . . . 1 . . . 3 . . . 1 . . 1 2 . . . . . Machines Sabotaged . | . . . . . . . . . . . . . . . . . . . . . . . . . . . . . . . . . . . Overloaded Fab Kills . | . . . . . . . . . . . . . . . . . . . . . . . . . . . . . . . . . . . Hacking | -11 -10 -10 -9 -9 -9 -8 -8 -8 -8 -8 -8 -8 -8 -7 -7 -7 -7 -6 -6 -6 -6 -5 -5 -5 -5 -4 -4 -4 -4 -4 -3 -2 -2 -2 --------- Run | Yrd Mat Min Mat Min Exi Min Mat Gar Mat Gar Mat Gar Mat Fac Gar Fac Gar Fac Was Fac Gar Fac Upp Upp War Pro Fac Gar Fac Gar Res Res Qua Frg Machines Accessed 99 | . 10 . 14 . 2 . 4 3 4 4 2 2 2 4 4 5 5 2 . 1 1 2 1 . 8 . 2 2 1 2 4 1 4 3 Terminals 65 | . 7 . 11 . . . 3 3 3 4 1 2 2 1 4 2 5 1 . . 1 2 . . . . 1 2 . 2 3 1 2 2 Fabricators 3 | . . . . . . . . . . . . . . . . 2 . 1 . . . . . . . . . . . . . . . . Repair Stations 4 | . 1 . 1 . . . . . . . . . . 1 . . . . . . . . . . . . . . . . . . 1 . Recycling Units 4 | . 2 . 2 . . . . . . . . . . . . . . . . . . . . . . . . . . . . . . . Scanalyzers 2 | . . . . . . . . . . . . . . 1 . . . . . . . . . . . . . . . . 1 . . . Garrison Access 10 | . . . . . . . 1 . 1 . 1 . . 1 . 1 . . . 1 . . . . . . 1 . 1 . . . 1 1 Total Hacks 252 | . 30 . 39 . 2 . 14 5 12 10 4 5 8 11 5 12 8 5 . 3 1 6 1 . 31 . 7 4 3 2 10 1 8 5 Successful 118 | . 17 . 19 . 2 . 2 2 6 . 2 1 2 7 2 3 4 2 . 1 1 1 1 . 31 . 3 . 1 2 2 . 2 2 Failed 134 | . 13 . 20 . . . 12 3 6 10 2 4 6 4 3 9 4 3 . 2 . 5 . . . . 4 4 2 . 8 1 6 3 Catastrophic 31 | . 1 . 6 . . . 2 . 1 5 1 . . . 1 1 1 2 . 2 . 1 . . . . . 1 . . 2 . 2 2 Database Lockouts . | . . . . . . . . . . . . . . . . . . . . . . . . . . . . . . . . . . . Manual 96 | . 19 . 28 . 1 . 10 . 10 . 3 . 4 5 . 4 . 3 . . . . . . . . 3 . . . 2 . 4 . Terminals 159 | . 24 . 31 . . . 8 5 9 10 2 5 8 1 5 7 8 2 . . 1 6 . . . . 4 4 . 2 9 1 4 3 Fabricators 5 | . . . . . . . . . . . . . . . . 2 . 3 . . . . . . . . . . . . . . . . Repair Stations 9 | . 4 . 2 . . . . . . . . . . 1 . . . . . . . . . . . . . . . . . . 2 . Recycling Units 8 | . 2 . 6 . . . . . . . . . . . . . . . . . . . . . . . . . . . . . . . Scanalyzers 5 | . . . . . . . . . . . . . . 4 . . . . . . . . . . . . . . . . 1 . . . Garrison Access 32 | . . . . . . . 6 . 3 . 2 . . 5 . 3 . . . 3 . . . . . . 3 . 3 . . . 2 2 Terminal Hacks 74 | . 7 . 6 . 2 . . 2 1 . 1 1 2 . 2 2 4 2 . . 1 1 1 . 31 . 1 . . 2 2 . 2 1 Record 18 | . . . . . 1 . . . . . . . . . . . . . . . . . . . 17 . . . . . . . . . Part Schematic 1 | . . . 1 . . . . . . . . . . . . . . . . . . . . . . . . . . . . . . . Robot Schematic 1 | . 1 . . . . . . . . . . . . . . . . . . . . . . . . . . . . . . . . . Robot Analysis 3 | . 1 . 1 . . . . . . . . . 1 . . . . . . . . . . . . . . . . . . . . . Prototype ID Bank 19 | . 3 . 2 . . . . . . . . . . . . . . . . . . . . . 13 . 1 . . . . . . . Open Door 4 | . . . . . . . . 1 . . . 1 . . . . . . . . . . 1 . 1 . . . . . . . . . Branch Access Points 3 | . . . 1 . . . . . . . . . 1 . . . . . . . . 1 . . . . . . . . . . . . Emergency Access Points 4 | . . . . . . . . 1 . . . . . . . . 1 . . . 1 . . . . . . . . 1 . . . . Terminal Index 1 | . . . 1 . . . . . . . . . . . . . . . . . . . . . . . . . . . . . . . Unreport Threat 6 | . . . . . . . . . 1 . 1 . . . . 2 . . . . . . . . . . . . . . 1 . 1 . Locate Traps 5 | . 1 . . . . . . . . . . . . . . . . 1 . . . . . . . . . . . . 1 . 1 1 Hauler Manifests 1 | . . . . . . . . . . . . . . . . . . 1 . . . . . . . . . . . . . . . . Zone Layout 1 | . 1 . . . . . . . . . . . . . . . . . . . . . . . . . . . . . . . . . Garrison Registry 2 | . . . . . . . . . . . . . . . 1 . 1 . . . . . . . . . . . . . . . . . Patrol Navigation 2 | . . . . . . . . . . . . . . . 1 . 1 . . . . . . . . . . . . . . . . . Security Stations 2 | . . . . . . . . . . . . . . . . . 1 . . . . . . . . . . . . 1 . . . . Proto ID Catalog 1 | . . . . . 1 . . . . . . . . . . . . . . . . . . . . . . . . . . . . . Fabricator Hacks . | . . . . . . . . . . . . . . . . . . . . . . . . . . . . . . . . . . . Repair Station Hacks 2 | . 2 . . . . . . . . . . . . . . . . . . . . . . . . . . . . . . . . . Scan Component 1 | . 1 . . . . . . . . . . . . . . . . . . . . . . . . . . . . . . . . . Repair 1 | . 1 . . . . . . . . . . . . . . . . . . . . . . . . . . . . . . . . . Recycling Unit Hacks 2 | . . . 2 . . . . . . . . . . . . . . . . . . . . . . . . . . . . . . . Retrieve Components 2 | . . . 2 . . . . . . . . . . . . . . . . . . . . . . . . . . . . . . . Scanalyzer 4 | . . . . . . . . . . . . . . 4 . . . . . . . . . . . . . . . . . . . . Insert Component 2 | . . . . . . . . . . . . . . 2 . . . . . . . . . . . . . . . . . . . . Analyze 2 | . . . . . . . . . . . . . . 2 . . . . . . . . . . . . . . . . . . . . Garrison Access Hacks 9 | . . . . . . . 1 . 1 . 1 . . 1 . 1 . . . 1 . . . . . . 1 . 1 . . . . 1 Unlock Access 9 | . . . . . . . 1 . 1 . 1 . . 1 . 1 . . . 1 . . . . . . 1 . 1 . . . . 1 Unauthorized Hacks 27 | . 8 . 11 . . . 1 . 4 . . . . 2 . . . . . . . . . . . . 1 . . . . . . . Terminals 19 | . 6 . 8 . . . 1 . 3 . . . . . . . . . . . . . . . . . 1 . . . . . . . Operators 3 | . 1 . 1 . . . . . . . . . . . . . . . . . . . . . . . 1 . . . . . . . Skim 16 | . 5 . 7 . . . 1 . 3 . . . . . . . . . . . . . . . . . . . . . . . . . Fabricators . | . . . . . . . . . . . . . . . . . . . . . . . . . . . . . . . . . . . Repair Stations 2 | . . . 1 . . . . . . . . . . 1 . . . . . . . . . . . . . . . . . . . . Patch 2 | . . . 1 . . . . . . . . . . 1 . . . . . . . . . . . . . . . . . . . . Recycling Units 4 | . 2 . 2 . . . . . . . . . . . . . . . . . . . . . . . . . . . . . . . Reject 2 | . . . 2 . . . . . . . . . . . . . . . . . . . . . . . . . . . . . . . Tunnel 2 | . 2 . . . . . . . . . . . . . . . . . . . . . . . . . . . . . . . . . Scanalyzers . | . . . . . . . . . . . . . . . . . . . . . . . . . . . . . . . . . . . Garrison Access 2 | . . . . . . . . . 1 . . . . 1 . . . . . . . . . . . . . . . . . . . . Reprogram 2 | . . . . . . . . . 1 . . . . 1 . . . . . . . . . . . . . . . . . . . . Data Cores Recovered 1 | . . . . . . . 1 . . . . . . . . . . . . . . . . . . . . . . . . . . . Used 1 | . . . . . . . 1 . . . . . . . . . . . . . . . . . . . . . . . . . . . Hacking Detections 75 | . 8 . 12 . . . 4 1 4 4 2 1 2 2 3 5 3 2 . 1 1 2 . . . . 2 2 1 1 4 1 4 3 Full Trace Events 18 | . 2 . 1 . . . . . . 3 . 1 . . . 1 . . . 1 . 1 . . . . 1 2 1 . 1 . 2 1 Feedback Events 1 | . . . . . . . . . . . . . . . . . . . . . . . . . . . . . . . . . 1 . Corruption 1 | . . . . . . . . . . . . . . . . . . . . . . . . . . . . . . . . . 1 . Feedback Blocked . | . . . . . . . . . . . . . . . . . . . . . . . . . . . . . . . . . . . Robot Schematics Acquired 2 | . 1 . . . . . . . . . . . . . . . . . . . . . . . . . . . . . . . 1 . Robots Built . | . . . . . . . . . . . . . . . . . . . . . . . . . . . . . . . . . . . Authchips . | . . . . . . . . . . . . . . . . . . . . . . . . . . . . . . . . . . . Time . | . . . . . . . . . . . . . . . . . . . . . . . . . . . . . . . . . . . Total Robot Build Rating . | . . . . . . . . . . . . . . . . . . . . . . . . . . . . . . . . . . . Part Schematics Acquired 4 | . . . 1 . . . . . . . . . . 2 . . . . . . . . . . . . . . . . . . 1 . Parts Built . | . . . . . . . . . . . . . . . . . . . . . . . . . . . . . . . . . . . Authchips . | . . . . . . . . . . . . . . . . . . . . . . . . . . . . . . . . . . . Time . | . . . . . . . . . . . . . . . . . . . . . . . . . . . . . . . . . . . Total Part Build Rating . | . . . . . . . . . . . . . . . . . . . . . . . . . . . . . . . . . . . Parts Repaired 1 | . 1 . . . . . . . . . . . . . . . . . . . . . . . . . . . . . . . . . Time 13 | . 13 . . . . . . . . . . . . . . . . . . . . . . . . . . . . . . . . . Parts Recycled . | . . . . . . . . . . . . . . . . . . . . . . . . . . . . . . . . . . . Recycled Matter . | . . . . . . . . . . . . . . . . . . . . . . . . . . . . . . . . . . . Retrieved Matter . | . . . . . . . . . . . . . . . . . . . . . . . . . . . . . . . . . . . Retrieved Components 11 | . . . 11 . . . . . . . . . . . . . . . . . . . . . . . . . . . . . . . Parts Scanalyzed 2 | . . . . . . . . . . . . . . 2 . . . . . . . . . . . . . . . . . . . . Part Schematics Acquired 2 | . . . . . . . . . . . . . . 2 . . . . . . . . . . . . . . . . . . . . Parts Damaged 1 | . . . . . . . . . . . . . . 1 . . . . . . . . . . . . . . . . . . . . Bothacking | -11 -10 -10 -9 -9 -9 -8 -8 -8 -8 -8 -8 -8 -8 -7 -7 -7 -7 -6 -6 -6 -6 -5 -5 -5 -5 -4 -4 -4 -4 -4 -3 -2 -2 -2 ------------ Run | Yrd Mat Min Mat Min Exi Min Mat Gar Mat Gar Mat Gar Mat Fac Gar Fac Gar Fac Was Fac Gar Fac Upp Upp War Pro Fac Gar Fac Gar Res Res Qua Frg Used RIF Installer . | . . . . . . . . . . . . . . . . . . . . . . . . . . . . . . . . . . . Robots Hacked . | . . . . . . . . . . . . . . . . . . . . . . . . . . . . . . . . . . . Non-combat . | . . . . . . . . . . . . . . . . . . . . . . . . . . . . . . . . . . . Combat . | . . . . . . . . . . . . . . . . . . . . . . . . . . . . . . . . . . . Robot Hacks Applied . | . . . . . . . . . . . . . . . . . . . . . . . . . . . . . . . . . . . Relay Couplers Released 163 | . . . . . . . . 26 . 15 . 10 . . 15 2 18 . . . 33 . . . . . . 24 . 17 . 3 . . Machine Destruction 163 | . . . . . . . . 26 . 15 . 10 . . 15 2 18 . . . 33 . . . . . . 24 . 17 . 3 . . Fabnet Peak Effective % . | . . . . . . . . . . . . . . . . . . . . . . . . . . . . . . . . . . . Robots Rewired 41 | . . . . . 3 . . 10 . 7 . 2 . . . . . . . . 7 . 2 . . . . 3 . 7 . . . . Allies Hacked 1 | . . . . . . . . . . . . . . . . . . . . . . . . . . . . . . 1 . . . . Hacks Repelled . | . . . . . . . . . . . . . . . . . . . . . . . . . . . . . . . . . . . Allies | -11 -10 -10 -9 -9 -9 -8 -8 -8 -8 -8 -8 -8 -8 -7 -7 -7 -7 -6 -6 -6 -6 -5 -5 -5 -5 -4 -4 -4 -4 -4 -3 -2 -2 -2 -------- Run | Yrd Mat Min Mat Min Exi Min Mat Gar Mat Gar Mat Gar Mat Fac Gar Fac Gar Fac Was Fac Gar Fac Upp Upp War Pro Fac Gar Fac Gar Res Res Qua Frg Total Allies 44 | . . . . . 3 . . 10 . 7 . 2 . . . . 1 . . . 8 . 2 . . . . 4 . 7 . . . . Largest Group 8 | . . . . . 3 3 . 7 5 7 4 5 . . . . 1 . . . 8 . 2 2 2 . . 3 3 4 3 . . . Highest-Rated Group 267 | . . . . . 37 37 . 119 83 241 150 189 . . . . 31 . . . 267 . 60 60 60 . . 144 144 200 150 . . . Highest-Rated Ally 51 | . . . . . 21 21 . 31 21 40 40 40 . . . . 31 . . . 40 . 30 30 30 . . 51 48 51 50 . . . Initial Warlord ECA Mod 1056 | . . . . . . . . . 12 12 20 20 23 22 22 29 29 36 36 36 36 49 49 49 49 48 48 48 59 59 67 66 66 66 Total Orders 7 | . . . . . . . . . . . . . . . . . . . . . . . . . 2 . . . . . 5 . . . STAY 1 | . . . . . . . . . . . . . . . . . . . . . . . . . 1 . . . . . . . . . ROAM 2 | . . . . . . . . . . . . . . . . . . . . . . . . . . . . . . . 2 . . . FOLLOW 2 | . . . . . . . . . . . . . . . . . . . . . . . . . 1 . . . . . 1 . . . RETURN 2 | . . . . . . . . . . . . . . . . . . . . . . . . . . . . . . . 2 . . . Ally Attacks 461 | . . . . . . 7 . 67 19 29 6 20 . . . . 11 . . . 41 . . . . . . 13 . 39 209 . . . Total Damage 10796 | . . . . . . 82 . 1075 390 603 135 476 . . . . 194 . . . 972 . . . . . . 80 . 1296 5493 . . . Kills 87 | . . . . . . 1 . 17 4 7 1 6 . . . . 1 . . . 7 . . . . . . 2 . 6 35 . . . Allies Corrupted . | . . . . . . . . . . . . . . . . . . . . . . . . . . . . . . . . . . . Allies Melted 7 | . . . . . . . . . . . . . . . . . . . . . . . . . 2 . . . . . . 5 . . Intel | -11 -10 -10 -9 -9 -9 -8 -8 -8 -8 -8 -8 -8 -8 -7 -7 -7 -7 -6 -6 -6 -6 -5 -5 -5 -5 -4 -4 -4 -4 -4 -3 -2 -2 -2 ------- Run | Yrd Mat Min Mat Min Exi Min Mat Gar Mat Gar Mat Gar Mat Fac Gar Fac Gar Fac Was Fac Gar Fac Upp Upp War Pro Fac Gar Fac Gar Res Res Qua Frg Active Infowar (turns) 5969 | 28 685 . . . 1 . . . . . . . . 117 . . . . . . 11 1 . . . . 2 . . . 310 2347 1530 937 Optics 2762 | . . . . . . . . . . . . . . . . . . . . . 11 1 . . . . . . . . . 283 1530 937 Sensors 2075 | . . . . . 1 . . . . . . . . . . . . . . . . . . . . . . . . . . 2074 . . IFF 116 | . . . . . . . . . . . . . . 116 . . . . . . . . . . . . . . . . . . . . Terrain 312 | . . . . . . . . . . . . . . . . . . . . . . . . . . . 2 . . . 310 . . . Seismic 714 | 28 685 . . . . . . . . . . . . 1 . . . . . . . . . . . . . . . . . . . . ECM 1 | . . . . . . . . . . . . . . . . . . . . . . . . . . . . . . . . 1 . . Robot Analysis Total 3 | . 1 . 1 . . . . . . . . . 1 . . . . . . . . . . . . . . . . . . . . . Derelict Logs Recovered 7 | . . 2 . 2 . . . . . . . . . . . . . . . . . . . . . 3 . . . . . . . . Drone Launches 31 | . . . . . . . . . . . . . . . . . . . . . . . . . . . . . . . 31 . . . Drone Recoveries 1 | . . . . . . . . . . . . . . . . . . . . . . . . . . . . . . . 1 . . . Exploration | -11 -10 -10 -9 -9 -9 -8 -8 -8 -8 -8 -8 -8 -8 -7 -7 -7 -7 -6 -6 -6 -6 -5 -5 -5 -5 -4 -4 -4 -4 -4 -3 -2 -2 -2 ------------- Run | Yrd Mat Min Mat Min Exi Min Mat Gar Mat Gar Mat Gar Mat Fac Gar Fac Gar Fac Was Fac Gar Fac Upp Upp War Pro Fac Gar Fac Gar Res Res Qua Frg Turns Passed 42512 | 127 1380 965 2380 708 524 250 190 1984 825 1900 116 1107 194 1718 1065 1394 1624 835 274 435 3609 1257 922 684 1752 2089 420 2250 79 2520 636 2718 1530 2051 Spaces Moved 20318 | 87 976 711 1442 428 299 142 105 1046 411 770 65 523 117 881 516 748 802 429 126 236 1262 444 442 352 883 311 185 950 16 878 251 2041 862 581 Core 204 | 4 . . . . . . . . . . . . . . . . . . . . . . . . . 68 3 . . . 27 93 . 9 Treads . | . . . . . . . . . . . . . . . . . . . . . . . . . . . . . . . . . . . Legs . | . . . . . . . . . . . . . . . . . . . . . . . . . . . . . . . . . . . Wheels 20114 | 83 976 711 1442 428 299 142 105 1046 411 770 65 523 117 881 516 748 802 429 126 236 1262 444 442 352 883 243 182 950 16 878 224 1948 862 572 Hover . | . . . . . . . . . . . . . . . . . . . . . . . . . . . . . . . . . . . Flight . | . . . . . . . . . . . . . . . . . . . . . . . . . . . . . . . . . . . Fastest Speed 50 | 50 80 95 95 135 150 135 150 150 150 150 150 150 150 150 140 145 145 145 160 145 145 180 185 185 155 160 160 145 160 150 50 50 117 131 Average Speed 156 | 78 93 95 116 149 150 147 150 150 150 150 150 150 150 150 159 150 152 150 160 145 178 205 191 185 184 603 194 174 171 177 167 118 124 208 Slowest Speed 2400 | 80 95 95 150 150 150 150 150 150 150 150 150 150 150 160 225 170 160 160 160 145 180 210 200 200 290 2400 2250 250 175 250 335 250 145 1650 Overloaded Moves . | . . . . . . . . . . . . . . . . . . . . . . . . . . . . . . . . . . . Propulsion Burnouts . | . . . . . . . . . . . . . . . . . . . . . . . . . . . . . . . . . . . Robots Hopped . | . . . . . . . . . . . . . . . . . . . . . . . . . . . . . . . . . . . Potential Cave-ins 2 | . . . . . . . . . . . . . . . . . . . . . . 2 . . . . . . . . . . . . Cave-ins Triggered . | . . . . . . . . . . . . . . . . . . . . . . . . . . . . . . . . . . . Exploration Rate (%) 52 | 6 99 99 94 77 71 40 20 92 44 80 8 48 16 28 76 25 89 14 75 9 94 14 67 46 88 49 4 90 1 93 11 68 89 19 Regions Visited 34 Branch Regions 10 Pre-discovered Areas 12 | . 5 1 1 2 1 . . . . . . . . . . . . . . . . . 1 . . 1 . . . . . . . . Known Exits Taken 11 | . . . 1 . . 1 1 . 1 . 1 . . 1 . 1 . . . 1 . 1 . . . . 1 . 1 . . . . . Unknown Exits Taken 13 | 1 1 1 . 1 1 . . . . . . . 1 . . . . . . . . . 1 1 1 1 . . . . 1 1 1 . Scrap Searched 5 | . . 1 . 1 . . . . . . . . . . . . . . . . . . 1 1 . 1 . . . . . . . . Spaces Dug 146 | . . . 12 . . 13 . 16 1 4 . 1 . . 7 . 55 . . . . 3 . . . . . 1 . 21 . 4 2 6 Terrain Destroyed 1615 | . 5 . 31 2 1 23 2 37 1 64 1 1 . 46 17 70 119 74 22 40 55 123 40 . 29 6 16 62 . 143 24 36 440 85 Melee 13 | . . . 3 . . . . 4 . 4 . 1 . . . . . . . . . . . . . . . . . . . . 1 . Projectile 921 | . . . 9 2 1 2 2 . 1 1 1 . . 8 . 26 12 16 22 2 54 78 40 . . 6 16 60 . 43 24 36 390 69 AOE 674 | . 5 . 19 . . 21 . 33 . 59 . . . 38 17 44 107 55 . 37 . 45 . . 29 . . . . 100 . . 49 16 Terrain Rammed . | . . . . . . . . . . . . . . . . . . . . . . . . . . . . . . . . . . . Walls Destroyed . | . . . . . . . . . . . . . . . . . . . . . . . . . . . . . . . . . . . Machines Disabled . | . . . . . . . . . . . . . . . . . . . . . . . . . . . . . . . . . . . Actions | -11 -10 -10 -9 -9 -9 -8 -8 -8 -8 -8 -8 -8 -8 -7 -7 -7 -7 -6 -6 -6 -6 -5 -5 -5 -5 -4 -4 -4 -4 -4 -3 -2 -2 -2 --------- Run | Yrd Mat Min Mat Min Exi Min Mat Gar Mat Gar Mat Gar Mat Fac Gar Fac Gar Fac Was Fac Gar Fac Upp Upp War Pro Fac Gar Fac Gar Res Res Qua Frg Total 26688 | 120 1315 986 1844 475 374 157 120 1311 529 1180 73 711 125 1074 631 885 1005 521 154 276 1986 594 483 372 974 516 235 1317 42 1434 368 2274 1115 1112 Wait 1276 | 4 192 253 159 6 . . 1 15 37 25 . 12 . 51 16 4 9 10 3 . 29 6 . . 6 178 15 32 12 22 19 16 46 98 Move 20289 | 86 975 710 1441 427 298 141 104 1045 410 769 64 522 116 880 515 748 801 429 125 236 1261 443 441 351 882 310 185 949 16 877 250 2040 861 581 Hop . | . . . . . . . . . . . . . . . . . . . . . . . . . . . . . . . . . . . Pick Up 539 | 10 18 5 37 11 1 . 3 15 9 18 1 7 2 17 14 19 14 11 2 3 42 22 6 3 18 1 13 34 . 46 5 42 21 69 Fast Attach 136 | 6 2 . 7 1 . 1 . 1 1 . . 1 . 5 3 5 . 3 1 1 11 3 1 . 3 1 3 6 . 12 4 27 6 21 Attach 234 | 1 1 . 6 2 . 1 2 4 . 8 . 6 . 7 9 3 5 6 1 2 16 16 1 . 4 7 4 17 . 33 7 11 13 41 Detach 50 | . . . . . . . . . . . . . . . . . . 1 . . 4 1 . . . 1 1 3 . 10 5 4 1 19 Swap 637 | 1 16 2 29 11 2 3 2 24 15 40 3 8 2 26 8 30 21 18 6 12 68 19 5 7 22 4 2 39 2 42 10 61 27 50 Drop 554 | 1 14 7 35 9 6 . 1 17 16 16 1 4 1 16 11 27 18 11 1 4 63 11 2 4 24 2 5 41 . 48 19 46 20 53 Fire 1979 | 11 81 9 123 8 1 11 7 54 41 161 4 70 4 72 55 49 98 32 15 18 263 73 13 . 7 12 7 100 . 237 45 27 111 160 Melee 44 | . . . 4 . . . . 13 . 7 . 1 . . . . . . . . . . . 7 . . . . . . . . 1 11 Ram 4 | . . . . . . . . . . . . . . . . . . . . . . . . . . . . . . . 4 . . . Kick . | . . . . . . . . . . . . . . . . . . . . . . . . . . . . . . . . . . . Crush . | . . . . . . . . . . . . . . . . . . . . . . . . . . . . . . . . . . . Escape Stasis 371 | . . . . . . . . 48 . 45 . 56 . . . . 31 . . . 82 . . . . . . 63 . 29 . . 8 9 Rewire 476 | . . . . . 66 . . 66 . 83 . 24 . . . . . . . . 121 . 14 . . . . 24 . 78 . . . . Trap 19 | . 16 . 3 . . . . . . . . . . . . . . . . . . . . . . . . . . . . . . . Miscellaneous 80 | . . . . . . . . 9 . 8 . . . . . . 8 . . . 26 . . . 8 . . 9 12 . . . . . Route ------- -11/Scrapyard -10/Materials (discovered 6 exits: *Mat x3 / [*Min x2] / *Sub) -10/Mines (discovered 3 exits: *Mat x2 / *Sub) -9/Materials (discovered 5 exits: *Mat x3 / *Min x2) -9/Mines (discovered 3 exits: *Mat x2 / *Exi) -9/Exiles -8/Mines (discovered 2 exits: *Mat x2) -8/Materials -8/Garrison (discovered 4 exits: *Mat x4) -8/Materials (discovered 2 exits: *Fac / Gar) -8/Garrison (discovered 4 exits: *Mat x4) -8/Materials -8/Garrison (discovered 2 exits: *Mat x2) -8/Materials -7/Factory (discovered 4 exits: *Fac x2 / *Sto / Gar) -7/Garrison (discovered 3 exits: *Fac x3) -7/Factory (discovered 3 exits: *Fac / [*Low] / Gar) -7/Garrison (discovered 3 exits: *Fac x3) -6/Factory -6/Waste -6/Factory (discovered 3 exits: *Fac / [*Low] / Gar) -6/Garrison (discovered 3 exits: *Fac x3) -5/Factory (discovered 4 exits: *Upp x2 / Ext x2) -5/Upper Caves -5/Upper Caves -5/Warlord -4/Proximity Caves -4/Factory -4/Garrison (discovered 3 exits: *Fac x3) -4/Factory -4/Garrison (discovered 3 exits: *Res x3) -3/Research -2/Research (discovered 3 exits: *Acc x2 / *Qua) -2/Quarantine (discovered 3 exits: *Acc / [*Sec] / *Frg) -2/Protoforge (discovered 2 exits: *Acc / Gar) History --------- Turn | Location | Event 2 | -11/Scrapyard | Met Revision 17 25 | -11/Scrapyard | Discovered new exit (range 16) 128 | -11/Scrapyard | Entered Materials 313 | -10/Materials | Discovered new exit (range 16) 315 | -10/Materials | Build established: Mutant 343 | -10/Materials | Discovered new exit (range 8) 518 | -10/Materials | Discovered new exit (range 14) 637 | -10/Materials | Discovered new exit (range 9) 799 | -10/Materials | Discovered new exit (range 18) 857 | -10/Materials | Learned Storage trap positions 903 | -10/Materials | Learned Storage trap positions 909 | -10/Materials | Repaired Lgt. Cannon 974 | -10/Materials | Identified exit to Subcaves 980 | -10/Materials | Learned location of 1 exit from Storage 1021 | -10/Materials | Learned Storage stockpile data 1053 | -10/Materials | Learned location of Mines (-10) 1508 | -10/Materials | Entered Mines 1520 | -10/Mines | Received a Rocket Launcher from a helpful Derelict 1532 | -10/Mines | Met a Derelict bent on vengeance 1548 | -10/Mines | Found a damaged Exp. Sensor Array with a note attached 1550 | -10/Mines | Found Prototype Device 1589 | -10/Mines | Assembled infested the area 1594 | -10/Mines | Assisted by a Guerilla fighting off Assembled 1884 | -10/Mines | Discovered new exit (range 6) 1885 | -10/Mines | Discovered new exit (range 4) 2069 | -10/Mines | Discovered exit to Subcaves (range 9) 2138 | -10/Mines | Learned Materials security intel 2275 | -10/Mines | Found a hidden stash of uninstalled traps 2473 | -10/Mines | Entered Materials 2473 | -9/Materials | Evolved 2 slots: Weapon x2 3114 | -9/Materials | Discovered new exit (range 15) 3196 | -9/Materials | Build established: Scavenger-Gunner 3255 | -9/Materials | Discovered new exit (range 15) 3460 | -9/Materials | Discovered new exit (range 4) 3568 | -9/Materials | Build established: Gunner 3629 | -9/Materials | Identified exit to Materials 3708 | -9/Materials | Learned Storage security intel 3832 | -9/Materials | Learned location of Zion (-7) 4006 | -9/Materials | Identified exit to Mines 4073 | -9/Materials | First assault squad dispatched 4568 | -9/Materials | Sterilization system engaged 4568 | -9/Materials | Non-combat units ordered to evacuate 4604 | -9/Materials | Core integrity fell below 50% 4625 | -9/Materials | Destroyed 16 combat bots 4668 | -9/Materials | Combat units ordered to evacuate 4853 | -9/Materials | Entered Mines 4855 | -9/Mines | Joined a pair of Derelicts in attacking an 0b10 outpost 4942 | -9/Mines | YI-UF0 nonchalantly dropped a Grenade Launcher on the ground 4962 | -9/Mines | Destroyed YI-UF0 4982 | -9/Mines | Found Prototype Launcher 4986 | -9/Mines | Identified YI-UF0's Doublenader 4989 | -9/Mines | Found Prototype Storage 4989 | -9/Mines | Identified YI-UF0's Bottomless Matter Pit 5442 | -9/Mines | Learned location of Storage (-7) 5503 | -9/Mines | Learned Materials stockpile data 5554 | -9/Mines | Deemed a non-threat by the Exiles lab entrance 5555 | -9/Mines | Discovered new exit (range 5) 5561 | -9/Mines | Entered Exiles 5561 | -9/Exiles | Found Exiles lab destroyed 5735 | -9/Exiles | Opened EX-Vault 5747 | -9/Exiles | Identified Exp. Sensor Array 5751 | -9/Exiles | Found Army-in-a-Box 6067 | -9/Exiles | Discovered new exit (range 10) 6085 | -9/Exiles | Entered Mines 6085 | -8/Mines | Accompanied by 3 allies 6280 | -8/Mines | Core integrity fell below 20% 6335 | -8/Mines | Entered Materials 6335 | -8/Materials | Evolved 2 slots: Utility x2 6510 | -8/Materials | Identified exit to Garrison 6525 | -8/Materials | Entered Garrison 6530 | -8/Garrison | Triggered checkpoint 6567 | -8/Garrison | Garrison Relay disabled 6635 | -8/Garrison | Triggered checkpoint 7043 | -8/Garrison | Garrison Relay disabled 7072 | -8/Garrison | Triggered checkpoint 7131 | -8/Garrison | Triggered checkpoint 7143 | -8/Garrison | Triggered checkpoint 7191 | -8/Garrison | Destroyed 9 combat bots 7205 | -8/Garrison | Triggered checkpoint 7232 | -8/Garrison | Build established: Commander-Gunner 7316 | -8/Garrison | Phase Generator disabled 7316 | -8/Garrison | Discovered new exit (range 11) 7389 | -8/Garrison | Triggered checkpoint 7430 | -8/Garrison | Garrison Relay disabled 7451 | -8/Garrison | Triggered checkpoint 7525 | -8/Garrison | Discovered new exit (range 3) 7680 | -8/Garrison | Triggered checkpoint 7708 | -8/Garrison | Garrison Relay disabled 7798 | -8/Garrison | Discovered new exit (range 10) 7828 | -8/Garrison | Triggered checkpoint 7857 | -8/Garrison | Triggered checkpoint 7866 | -8/Garrison | Garrison Relay disabled 8349 | -8/Garrison | Discovered new exit (range 5) 8391 | -8/Garrison | Triggered checkpoint 8430 | -8/Garrison | Garrison Relay disabled 8444 | -8/Garrison | Garrison Relay disabled 8509 | -8/Garrison | Entered Materials 8509 | -8/Materials | Accompanied by 5 allies 8644 | -8/Materials | Lost 5 allies 8909 | -8/Materials | First assault squad dispatched 9188 | -8/Materials | Build established: Gunner 9218 | -8/Materials | Discovered new exit (range 13) 9310 | -8/Materials | Identified exit to Garrison 9334 | -8/Materials | Entered Garrison 9472 | -8/Garrison | Garrison Relay disabled 9563 | -8/Garrison | Core integrity fell below 50% 9661 | -8/Garrison | Triggered checkpoint 9732 | -8/Garrison | Destroyed 9 combat bots 9739 | -8/Garrison | Lost 3 parts (1p2w) 9781 | -8/Garrison | Triggered checkpoint 9824 | -8/Garrison | Triggered checkpoint 9878 | -8/Garrison | Triggered checkpoint 10227 | -8/Garrison | Triggered checkpoint 10255 | -8/Garrison | Garrison Relay disabled 10277 | -8/Garrison | Triggered checkpoint 10316 | -8/Garrison | Discovered new exit (range 3) 10420 | -8/Garrison | Discovered new exit (range 14) 10657 | -8/Garrison | Discovered new exit (range 8) 10685 | -8/Garrison | Triggered checkpoint 10722 | -8/Garrison | Garrison Relay disabled 10786 | -8/Garrison | Build established: Commander-Gunner 11043 | -8/Garrison | Triggered checkpoint 11130 | -8/Garrison | Triggered checkpoint 11159 | -8/Garrison | Garrison Relay disabled 11217 | -8/Garrison | Discovered new exit (range 11) 11234 | -8/Garrison | Entered Materials 11234 | -8/Materials | Accompanied by 4 allies 11302 | -8/Materials | Garrison activated, responded to threat 11332 | -8/Materials | Identified exit to Garrison 11336 | -8/Materials | Build established: Scavenger-Gunner 11350 | -8/Materials | Entered Garrison 11350 | -8/Garrison | Accompanied by 3 allies 11484 | -8/Garrison | Triggered checkpoint 11524 | -8/Garrison | Garrison Relay disabled 11639 | -8/Garrison | P-60 Hacker assimilated allied GU-SJ7(h) 11676 | -8/Garrison | Core integrity fell below 20% 11678 | -8/Garrison | System corruption reached 10% 11688 | -8/Garrison | Lost 4 allies 11716 | -8/Garrison | Triggered checkpoint 11992 | -8/Garrison | Discovered new exit (range 10) 12086 | -8/Garrison | Garrison Relay disabled 12136 | -8/Garrison | Triggered checkpoint 12237 | -8/Garrison | Triggered checkpoint 12318 | -8/Garrison | Triggered checkpoint 12361 | -8/Garrison | Lost 3 parts (2u1w) 12363 | -8/Garrison | Garrison Relay disabled 12423 | -8/Garrison | Discovered new exit (range 15) 12457 | -8/Garrison | Entered Materials 12646 | -8/Materials | Discovered new exit (range 4) 12651 | -8/Materials | Entered Factory 12651 | -7/Factory | Evolved 2 slots: Utility x1, Weapon x1 12652 | -7/Factory | Identified exit to Storage 12692 | -7/Factory | Discovered new exit (range 10) 13558 | -7/Factory | Build established: Gunner 13784 | -7/Factory | Discovered new exit (range 12) 13851 | -7/Factory | First assault squad dispatched 14256 | -7/Factory | Identified exit to Garrison 14369 | -7/Factory | Entered Garrison 14397 | -7/Garrison | Phase Generator disabled 14443 | -7/Garrison | Discovered new exit (range 37) 14443 | -7/Garrison | Discovered new exit (range 62) 14443 | -7/Garrison | Discovered new exit (range 70) 14480 | -7/Garrison | Triggered checkpoint 14550 | -7/Garrison | Lost 3 parts (1n2w) 14577 | -7/Garrison | Garrison Relay disabled 14695 | -7/Garrison | Triggered checkpoint 14700 | -7/Garrison | Triggered checkpoint 14706 | -7/Garrison | Triggered checkpoint 14810 | -7/Garrison | Triggered checkpoint 14937 | -7/Garrison | Triggered checkpoint 14976 | -7/Garrison | Garrison Relay disabled 15275 | -7/Garrison | Garrison Relay disabled 15311 | -7/Garrison | Build established: Scavenger-Gunner 15402 | -7/Garrison | Garrison Relay disabled 15434 | -7/Garrison | Entered Factory 15582 | -7/Factory | Discovered new exit (range 8) 16029 | -7/Factory | Build established: Gunner 16045 | -7/Factory | Allied Derelicts emerged from ambush trap array 16101 | -7/Factory | Garrison activated, responded to threat 16167 | -7/Factory | Destroyed 7 combat bots 16168 | -7/Factory | Lost 3 parts (1p1n1u) 16310 | -7/Factory | Discovered new exit (range 14) 16758 | -7/Factory | Garrison activated, responded to threat 16777 | -7/Factory | Build established: Scavenger-Gunner 16828 | -7/Factory | Identified exit to Garrison 16828 | -7/Factory | Entered Garrison 16909 | -7/Garrison | Garrison Relay disabled 16974 | -7/Garrison | Triggered checkpoint 17011 | -7/Garrison | Triggered checkpoint 17071 | -7/Garrison | Triggered checkpoint 17092 | -7/Garrison | Core integrity fell below 50% 17154 | -7/Garrison | Triggered checkpoint 17288 | -7/Garrison | Learned Factory security intel 17324 | -7/Garrison | Triggered checkpoint 17373 | -7/Garrison | Garrison Relay disabled 17449 | -7/Garrison | Discovered new exit (range 5) 17505 | -7/Garrison | Rescued a captive Derelict 17736 | -7/Garrison | Discovered new exit (range 14) 17772 | -7/Garrison | Discovered new exit (range 10) 17772 | -7/Garrison | Discovered new exit (range 79) 17772 | -7/Garrison | Discovered new exit (range 50) 17776 | -7/Garrison | Build established: Gunner 17810 | -7/Garrison | Triggered checkpoint 17841 | -7/Garrison | Garrison Relay disabled 18096 | -7/Garrison | Destroyed 7 combat bots 18104 | -7/Garrison | Garrison Relay disabled 18112 | -7/Garrison | Triggered checkpoint 18205 | -7/Garrison | Triggered checkpoint 18452 | -7/Garrison | Entered Factory 18452 | -6/Factory | Evolved 2 slots: Utility x2 18760 | -6/Factory | Build established: Scavenger-Gunner 18895 | -6/Factory | Spotted B-75 Beast 19152 | -6/Factory | First assault squad dispatched 19287 | -6/Factory | Sucked down chute 19287 | -6/Factory | Entered Waste 19302 | -6/Waste | EMP discharged 19325 | -6/Waste | Spotted C-40 Crusher 19330 | -6/Waste | Destroyed C-40 Crusher 19334 | -6/Waste | Spotted C-40 Crusher 19358 | -6/Waste | Destroyed C-40 Crusher 19365 | -6/Waste | Spotted C-40 Crusher 19366 | -6/Waste | Spotted C-40 Crusher 19376 | -6/Waste | Destroyed C-40 Crusher 19377 | -6/Waste | Spotted C-40 Crusher 19390 | -6/Waste | Destroyed C-40 Crusher 19402 | -6/Waste | EMP discharged 19402 | -6/Waste | System corruption reached 10% 19412 | -6/Waste | Destroyed C-40 Crusher 19441 | -6/Waste | Spotted C-40 Crusher 19454 | -6/Waste | Destroyed C-40 Crusher 19502 | -6/Waste | EMP discharged 19537 | -6/Waste | Discovered new exit (range 15) 19561 | -6/Waste | Entered Factory 19660 | -6/Factory | Discovered new exit (range 15) 19908 | -6/Factory | Garrison activated, responded to threat 19953 | -6/Factory | Discovered new exit (range 15) 19996 | -6/Factory | Identified exit to Garrison 19996 | -6/Factory | Entered Garrison 20351 | -6/Garrison | Lost 4 parts (1u3w) 20554 | -6/Garrison | Phase Generator disabled 20688 | -6/Garrison | Triggered checkpoint 20718 | -6/Garrison | Core integrity fell below 50% 20761 | -6/Garrison | Garrison Relay disabled 20801 | -6/Garrison | Rescued a captive Derelict 21207 | -6/Garrison | Triggered checkpoint 21214 | -6/Garrison | Triggered checkpoint 21263 | -6/Garrison | Triggered checkpoint 21334 | -6/Garrison | Build established: Commander-Gunner 21486 | -6/Garrison | Discovered new exit (range 15) 21495 | -6/Garrison | Spotted Executioner 21495 | -6/Garrison | Spotted Executioner 21538 | -6/Garrison | Allies destroyed Executioner 21544 | -6/Garrison | Allies destroyed Executioner 21563 | -6/Garrison | Lost 3 allies 21586 | -6/Garrison | Found Corrupted Prototype Processor 21586 | -6/Garrison | Identified Exp. Core Analyzer 21647 | -6/Garrison | Lost 3 allies 21670 | -6/Garrison | Triggered checkpoint 21767 | -6/Garrison | Triggered checkpoint 21874 | -6/Garrison | Build established: Scavenger-Gunner 21939 | -6/Garrison | Garrison Relay disabled 22115 | -6/Garrison | Garrison Relay disabled 22260 | -6/Garrison | Triggered checkpoint 22456 | -6/Garrison | Triggered checkpoint 22468 | -6/Garrison | Garrison Relay disabled 22602 | -6/Garrison | Garrison Relay disabled 22614 | -6/Garrison | Spotted B-75 Beast 22636 | -6/Garrison | Destroyed B-75 Beast 22658 | -6/Garrison | Discovered new exit (range 8) 22685 | -6/Garrison | Found Unknown Launcher 22685 | -6/Garrison | Identified Gamma Bomb Array 23219 | -6/Garrison | Garrison Relay disabled 23309 | -6/Garrison | Garrison Relay disabled 23441 | -6/Garrison | Discovered new exit (range 10) 23605 | -6/Garrison | Entered Factory 23605 | -5/Factory | Evolved 2 slots: Power x1, Utility x1 24205 | -5/Factory | First assault squad dispatched 24245 | -5/Factory | Identified exit to Upper Caves 24245 | -5/Factory | Identified exit to Extension 24399 | -5/Factory | Destroyed 7 combat bots 24655 | -5/Factory | Destroyed 9 combat bots 24709 | -5/Factory | Lost 10 parts (2n4u4w) 24712 | -5/Factory | Destroyed 8 combat bots 24862 | -5/Factory | Entered Upper Caves 24869 | -5/Upper Caves | Met a Warlord Commander 24870 | -5/Upper Caves | Learned location of Warlord (-5) 24871 | -5/Upper Caves | Warlord Commander delivered Encrypted Comm Array 24872 | -5/Upper Caves | Found Encrypted Comm Array 25201 | -5/Upper Caves | Attracted the attention of an 0b10 outpost 25216 | -5/Upper Caves | System corruption reached 10% 25234 | -5/Upper Caves | Destroyed 7 combat bots 25585 | -5/Upper Caves | Attracted the attention of an 0b10 checkpoint 25640 | -5/Upper Caves | Discovered new exit (range 9) 25784 | -5/Upper Caves | Entered another Upper Caves area 25784 | -5/Upper Caves | Accompanied by 2 allies 26372 | -5/Upper Caves | Discovered new exit (range 12) 26468 | -5/Upper Caves | Entered Warlord 26468 | -5/Warlord | Accompanied by 2 allies 26531 | -5/Warlord | System corruption cleaned by Quarantine Array 26555 | -5/Warlord | System corruption cleaned by Quarantine Array 26844 | -5/Warlord | Found Prototype Device 26844 | -5/Warlord | Identified System Purifier 26866 | -5/Warlord | Found Prototype Reactor 26877 | -5/Warlord | Found Prototype Processor 26877 | -5/Warlord | Identified Exp. Armor Integrity Analyzer 26889 | -5/Warlord | Found Prototype Processor 27327 | -5/Warlord | Visited the Vortex Lab 27338 | -5/Warlord | Found Prototype Energy Gun 27338 | -5/Warlord | Identified Vortex Rifle 27339 | -5/Warlord | Warlord's base attacked by MAIN.C 27346 | -5/Warlord | Found Vortex Rifle 27660 | -5/Warlord | Found Prototype Energy Gun 27660 | -5/Warlord | Identified Plasma Storm 27679 | -5/Warlord | Identified Vortex Chain Reactor 27689 | -5/Warlord | Warlord forces counterattacked 27756 | -5/Warlord | Met Warlord 28014 | -5/Warlord | Warlord base infiltrated, sounded retreat 28163 | -5/Warlord | Spotted Executioner 28171 | -5/Warlord | Destroyed Executioner 28187 | -5/Warlord | Discovered new exit (range 13) 28210 | -5/Warlord | Destroyed 13 combat bots 28212 | -5/Warlord | Lost 3 parts (2n1u) 28220 | -5/Warlord | Entered Proximity Caves 28532 | -4/Proximity Caves | Learned Research terminal intel 28681 | -4/Proximity Caves | Build established: Gunner 28725 | -4/Proximity Caves | Received a Behemoth hack from an annoying Tinkerer 28784 | -4/Proximity Caves | Learned 4 Research zone layouts 29677 | -4/Proximity Caves | Attracted the attention of an 0b10 checkpoint 29695 | -4/Proximity Caves | Core integrity fell below 50% 29987 | -4/Proximity Caves | Build established: Scavenger-Gunner 30195 | -4/Proximity Caves | Discovered new exit (range 6) 30309 | -4/Proximity Caves | Entered Factory 30309 | -4/Factory | Evolved 2 slots: Utility x1, Weapon x1 30624 | -4/Factory | Build established: Scavenger-Executioner 30729 | -4/Factory | Identified exit to Garrison 30729 | -4/Factory | Entered Garrison 30774 | -4/Garrison | Triggered checkpoint 30817 | -4/Garrison | Destroyed 7 combat bots 30833 | -4/Garrison | Garrison Relay disabled 30895 | -4/Garrison | Rescued a captive Derelict 30977 | -4/Garrison | Spotted B-86 Titan 30984 | -4/Garrison | Destroyed B-86 Titan 30985 | -4/Garrison | Triggered checkpoint 31011 | -4/Garrison | Triggered checkpoint 31055 | -4/Garrison | Triggered checkpoint 31113 | -4/Garrison | Destroyed 15 combat bots 31116 | -4/Garrison | Lost 3 parts (2u1w) 31223 | -4/Garrison | Triggered checkpoint 31383 | -4/Garrison | Phase Generator disabled 31580 | -4/Garrison | Garrison Relay disabled 31623 | -4/Garrison | Discovered new exit (range 10) 31876 | -4/Garrison | Triggered checkpoint 32013 | -4/Garrison | Garrison Relay disabled 32048 | -4/Garrison | Discovered new exit (range 14) 32232 | -4/Garrison | Triggered checkpoint 32267 | -4/Garrison | Garrison Relay disabled 32296 | -4/Garrison | Garrison Relay disabled 32404 | -4/Garrison | Discovered new exit (range 10) 32531 | -4/Garrison | Spotted B-86 Titan 32564 | -4/Garrison | Destroyed B-86 Titan 32592 | -4/Garrison | Lost 3 parts (2u1w) 32742 | -4/Garrison | Triggered checkpoint 32793 | -4/Garrison | Triggered checkpoint 32807 | -4/Garrison | Garrison Relay disabled 32979 | -4/Garrison | Entered Factory 32979 | -4/Factory | Accompanied by 3 allies 33046 | -4/Factory | Identified exit to Garrison 33058 | -4/Factory | Entered Garrison 33058 | -4/Garrison | Accompanied by 3 allies 33098 | -4/Garrison | Triggered checkpoint 33150 | -4/Garrison | Garrison Relay disabled 33154 | -4/Garrison | Identified Exp. Targeting Computer 33392 | -4/Garrison | Spotted B-86 Titan 33394 | -4/Garrison | Triggered checkpoint 33399 | -4/Garrison | Triggered checkpoint 33401 | -4/Garrison | Triggered checkpoint 33406 | -4/Garrison | Triggered checkpoint 33410 | -4/Garrison | Core integrity fell below 50% 33415 | -4/Garrison | Destroyed B-86 Titan 33449 | -4/Garrison | Lost 6 parts (1n2u3w) 33453 | -4/Garrison | Destroyed 10 combat bots 33549 | -4/Garrison | Lost 3 parts (2p1w) 33989 | -4/Garrison | System corruption reached 10% 34000 | -4/Garrison | System corruption reached 30% 34035 | -4/Garrison | Discovered new exit (range 10) 34036 | -4/Garrison | Lost 10 parts (1n3u6w) 34114 | -4/Garrison | Triggered checkpoint 34128 | -4/Garrison | Garrison Relay disabled 34403 | -4/Garrison | Phase Generator disabled 34428 | -4/Garrison | Discovered new exit (range 12) 34452 | -4/Garrison | Triggered checkpoint 34592 | -4/Garrison | Destroyed 8 combat bots 34631 | -4/Garrison | Garrison Relay disabled 35324 | -4/Garrison | Discovered new exit (range 12) 35334 | -4/Garrison | Learned Research security intel 35360 | -4/Garrison | Triggered checkpoint 35520 | -4/Garrison | Garrison Relay disabled 35578 | -4/Garrison | Entered Research 35578 | -3/Research | Accompanied by 3 allies 35578 | -3/Research | Evolved 2 slots: Propulsion x1, Utility x1 35581 | -3/Research | Loaded intel: 23 terminal locations 35675 | -3/Research | Found Prototype Protection 35675 | -3/Research | Identified Centrium Heavy Armor Plating 35679 | -3/Research | Found Centrium Heavy Armor Plating 35718 | -3/Research | Found Centrium Heavy Armor Plating 35828 | -3/Research | First assault squad dispatched 36039 | -3/Research | High security lockdown imminent 36102 | -3/Research | Lost 6 parts (1n3u2w) 36112 | -3/Research | System corruption reached 10% 36119 | -3/Research | High security lockdown engaged 36129 | -3/Research | Destroyed 14 combat bots 36157 | -3/Research | Lost 8 parts (1p1n3u3w) 36206 | -3/Research | Discovered new exit (range 10) 36214 | -3/Research | Entered another Research area 36214 | -2/Research | Warlord forces began assault on 0b10 36214 | -2/Research | Evolved 2 slots: Propulsion x1, Utility x1 36224 | -2/Research | Lost 30 allies 36229 | -2/Research | Lost 4 parts (3n1w) 36239 | -2/Research | Distinguished unit "Knights of the Pentagonal Table" dispatched to help 36239 | -2/Research | Distinguished unit "The Professionals" dispatched to help 36324 | -2/Research | Research machine network offline 36548 | -2/Research | Build established: Scavenger-Gunner 36733 | -2/Research | Borebot progress halted 36878 | -2/Research | Borebot progress halted 37118 | -2/Research | Met up with Warlord 37129 | -2/Research | Spotted Striker 37202 | -2/Research | Build established: Scavenger-Executioner 37520 | -2/Research | Spotted Striker 37520 | -2/Research | Spotted Striker 37526 | -2/Research | Destroyed Striker 37534 | -2/Research | Destroyed Striker 37599 | -2/Research | Discovered new exit (range 10) 37611 | -2/Research | Identified exit to Access 37717 | -2/Research | Given Cave Seal Controls access code 38228 | -2/Research | Spotted Executioner 38233 | -2/Research | Destroyed Executioner 38255 | -2/Research | Found Exp. Core Analyzer 38425 | -2/Research | Found Exp. Core Analyzer 38427 | -2/Research | Found Exp. Core Analyzer 38430 | -2/Research | Found Prototype Device 38430 | -2/Research | Identified Adv. Kinecellerator 38447 | -2/Research | Found Exp. Targeting Computer 38571 | -2/Research | Spotted Striker 38596 | -2/Research | Spotted Executioner 38615 | -2/Research | Spotted Executioner 38652 | -2/Research | Lost 11 allies 38656 | -2/Research | Found Adv. Kinecellerator 38661 | -2/Research | Found Exp. Core Analyzer 38676 | -2/Research | Discovered exit to Access (range 14) 38884 | -2/Research | Discovered new exit (range 18) 38932 | -2/Research | Entered Quarantine 38940 | -2/Quarantine | Spotted Alpha 7 39016 | -2/Quarantine | Cryocooling Duct disabled 39031 | -2/Quarantine | Ambient heat levels rising (+20) 39031 | -2/Quarantine | Non-combat units ordered to evacuate 39457 | -2/Quarantine | Found Alien Reactor 39520 | -2/Quarantine | Garrison activated, responded to threat 39641 | -2/Quarantine | Found Alien Slashing Weapon 39641 | -2/Quarantine | Identified Sigix Broadsword 39653 | -2/Quarantine | Destroyed 7 combat bots 39682 | -2/Quarantine | First assault squad dispatched 39697 | -2/Quarantine | Discovered exit to Access (range 8) 39746 | -2/Quarantine | Found Alien Energy Cannon 39773 | -2/Quarantine | System corruption reached 10% 39818 | -2/Quarantine | Found Exp. Shield Generator 39987 | -2/Quarantine | Lost 3 parts (1n1u1w) 39989 | -2/Quarantine | Build established: Scavenger-Gunner 40207 | -2/Quarantine | High security lockdown imminent 40257 | -2/Quarantine | Destroyed 9 combat bots 40264 | -2/Quarantine | Lost 4 parts (2n1u1w) 40287 | -2/Quarantine | High security lockdown engaged 40299 | -2/Quarantine | Build established: Scavenger-Executioner 40355 | -2/Quarantine | Spotted Fortress 40414 | -2/Quarantine | Lost 7 parts (1p1n2u3w) 40457 | -2/Quarantine | Discovered new exit (range 5) 40457 | -2/Quarantine | Discovered new exit (range 6) 40462 | -2/Quarantine | Entered Protoforge 40463 | -2/Protoforge | Superfortress began startup sequence 40508 | -2/Protoforge | Lost 4 parts (1p1n2w) 40674 | -2/Protoforge | Build established: Scavenger-Gunner 40704 | -2/Protoforge | Spotted B-90 Cyclops 40712 | -2/Protoforge | First assault squad dispatched 40744 | -2/Protoforge | Spotted Hotshot 40744 | -2/Protoforge | Spotted Hotshot 40744 | -2/Protoforge | Spotted Hotshot 40744 | -2/Protoforge | Spotted Hotshot 40744 | -2/Protoforge | Spotted Hotshot 40765 | -2/Protoforge | Destroyed Hotshot 40771 | -2/Protoforge | Destroyed Hotshot 40803 | -2/Protoforge | Destroyed Hotshot 40811 | -2/Protoforge | Destroyed Hotshot 40851 | -2/Protoforge | Destroyed Hotshot 40911 | -2/Protoforge | Discovered exit to Access (range 7) 41078 | -2/Protoforge | Identified Core Cannon 41080 | -2/Protoforge | Additional patrols dispatched to research labs 41081 | -2/Protoforge | Core integrity fell below 50% 41104 | -2/Protoforge | Found Prototype Launcher 41104 | -2/Protoforge | Identified Cep. Rapid Grenade Launcher 41117 | -2/Protoforge | Found Prototype Launcher 41117 | -2/Protoforge | Identified Cep. Smart ZDS 41123 | -2/Protoforge | Found Prototype Launcher 41131 | -2/Protoforge | Spotted Immortal 41173 | -2/Protoforge | Spotted Decapitator 41173 | -2/Protoforge | Spotted Decapitator 41173 | -2/Protoforge | Spotted Decapitator 41179 | -2/Protoforge | Destroyed Decapitator 41179 | -2/Protoforge | Destroyed Decapitator 41179 | -2/Protoforge | Destroyed Decapitator 41285 | -2/Protoforge | Found Prototype Storage 41290 | -2/Protoforge | Found Prototype Storage 41292 | -2/Protoforge | Identified Cep. NT7 Matterbank 41301 | -2/Protoforge | Identified Cep. Chromion Battery 41330 | -2/Protoforge | Found Cep. Chromion Battery 41348 | -2/Protoforge | Identified Cep. EMP Blanket Launcher 41358 | -2/Protoforge | Found Prototype Device 41368 | -2/Protoforge | Found Prototype Device 41373 | -2/Protoforge | Found Prototype Storage 41428 | -2/Protoforge | Identified Cep. Matter Streamer (x2) 41436 | -2/Protoforge | Identified Cep. Antigrav Storage Unit 41442 | -2/Protoforge | System corruption reached 30% 41456 | -2/Protoforge | Found Cep. NT7 Matterbank 41473 | -2/Protoforge | Destroyed 14 combat bots 41477 | -2/Protoforge | Lost 5 parts (1p4u) 41550 | -2/Protoforge | Found Cep. Antigrav Storage Unit 41554 | -2/Protoforge | Found Exp. Core Analyzer 41558 | -2/Protoforge | Found Cep. NT7 Matterbank 41562 | -2/Protoforge | Found Cep. Chromion Battery 41696 | -2/Protoforge | Destroyed 14 combat bots 41764 | -2/Protoforge | Found Prototype Device 41764 | -2/Protoforge | Identified Crosscalibrator 41774 | -2/Protoforge | Found Cep. Chromion Battery 41776 | -2/Protoforge | Lost 6 parts (1p1n1u3w) 41776 | -2/Protoforge | Found Cep. Chromion Battery 41777 | -2/Protoforge | Destroyed 8 combat bots 41824 | -2/Protoforge | Identified exit to Garrison 41879 | -2/Protoforge | Found Corrupted Prototype Ballistic Cannon 41884 | -2/Protoforge | Found Prototype Ballistic Gun 41893 | -2/Protoforge | Spotted V180-f 41893 | -2/Protoforge | Spotted V275-g 41893 | -2/Protoforge | Spotted V574-p 41893 | -2/Protoforge | Spotted V258-c 41917 | -2/Protoforge | Identified Cep. Helical Railcannon 41919 | -2/Protoforge | Identified Cep. XC Strikerail 41923 | -2/Protoforge | Found Faulty Cep. XC Strikerail 41927 | -2/Protoforge | Found Prototype Energy Gun 41930 | -2/Protoforge | Found Prototype Energy Gun 41935 | -2/Protoforge | Found Prototype Ballistic Cannon 41940 | -2/Protoforge | Identified Cep. Heavy Railcannon 41942 | -2/Protoforge | Found Prototype Energy Cannon 41945 | -2/Protoforge | Found Prototype Energy Cannon 41957 | -2/Protoforge | Identified Cep. Plasma Driver (x2) 41964 | -2/Protoforge | Identified Cep. Variable Chargecaster 41970 | -2/Protoforge | Identified Cep. Lightning Penetrator 42001 | -2/Protoforge | Found Cep. Plasma Driver 42006 | -2/Protoforge | Found Faulty Cep. Helical Railcannon 42010 | -2/Protoforge | Found Faulty Cep. Variable Chargecaster 42015 | -2/Protoforge | Found Prototype Piercing Weapon 42018 | -2/Protoforge | Found Prototype Energy Gun 42035 | -2/Protoforge | Identified Exp. Jetlance 42057 | -2/Protoforge | Identified Cep. Disintegration Ray 42059 | -2/Protoforge | Found Faulty Cep. Helical Railcannon 42080 | -2/Protoforge | Found Faulty Cep. XC Strikerail 42085 | -2/Protoforge | Found Corrupted Cep. Disintegration Ray 42097 | -2/Protoforge | Destroyed V275-g 42109 | -2/Protoforge | Destroyed V574-p 42112 | -2/Protoforge | Destroyed V258-c 42117 | -2/Protoforge | Destroyed V180-f 42128 | -2/Protoforge | Found Faulty Cep. XC Strikerail 42136 | -2/Protoforge | Found Corrupted Cep. Heavy Railcannon 42140 | -2/Protoforge | Lost 4 parts (1p1n1u1w) 42160 | -2/Protoforge | Found Corrupted Cep. Helical Railcannon 42165 | -2/Protoforge | Found Corrupted Cep. Variable Chargecaster 42175 | -2/Protoforge | Destroyed 10 combat bots 42206 | -2/Protoforge | Lost 3 parts (2u1w) 42327 | -2/Protoforge | Core integrity fell below 20% 42374 | -2/Protoforge | Lost 4 parts (1p1n1u1w) 42384 | -2/Protoforge | Build established: Scavenger-Executioner 42513 | -2/Protoforge | Self-destructed Last Messages --------------- 42456_ Acquired 18 matter. 42456_ Acquired 41 matter. 42456_ Acquired 71 matter. 42456_ Acquired 19 matter. 42456_ Acquired 2 matter. 42456_ Acquired 6 matter. 42456_ Acquired 94 matter. 42456_ Acquired 86 matter. 42459_ N-04 Retriever collects Machine Analyzer. 42468_ System corrupted: Matter fused (-8). 42484_ System corrupted: Matter fused (-9). 42499_ System corrupted: Matter fused (-7). 42499_ Triggered Segregator Trap. 42499_ Arcs of energy rise from the floor. 42499_ Cep. Variable Chargecaster blown off. 42499_ Cep. Helical Railcannon blown off. 42499_ Cep. Smart ZDS blown off. 42510_ N-04 Retriever collects Cep. Variable Chargecaster. 42511_ N-04 Retriever collects Cep. Smart ZDS. 42511_ N-04 Retriever collects Cep. Variable Chargecaster. Map ----- +----------------------------------------------------+ | " "[/"#??????????????????????????????????????? | | !/"#??????????????????????????????????????? | | "[ "#??????????????????????????????????????? | | "][ #??????????????????????????????????????? | | " ["#??????????????????????????????????????? | | "/["#??????????????????????????????????????? | | " ["#??????????????????????????????????????? | | !"#??????????????????????????????????????? | | # ="#??????????????????????????????????????? | | [ ####"""#??????????????????????????????????????? | | #??#####????????????? ???????????????????????? | | #???????????????????? ???????????????????????? | | #???????????????????" ???????????????????????? | | #???????????????????" ???????????????????????? | | #???????????????????" "??????????????????????? | | #???????????????????" "??????????????????????? | | #???????????????????# #??????????????????????? | | #???????????????????# #??????????????????????? | | #???????????????????# #??????????????????????? | | " ##??????????????????# #??????????????????????? | | " "##?????????????????# #??????????????????????? | | # " #?????????????????# #??????????????????????? | | # " #?????????????????# #??????????????????????? | | #![" ##????????????????# #??????????????????????? | | #=="# #????????????????# ]#??????????????????????? | | #[ ##???????????????## @#??????????????????????? | | # ####################; #??????????????????????? | | " ###????????????????????? | | " n "###??????????????????? | | " #????????????????? | | ##""#####+++#####;#; ^;#########????????????????? | | ?# ## # # # #???????????????????????? | | ?# ## ##### ## ??????????????????????? | | ?# ## " " #???#^ #?###?????????????????????? | | ?# ### ">" #???# #?????????????????????????? | | ?###?# ""G"" #???# ^ #?????????????????????????? | | ?????# #???#^ #?????????????????????????? | | ?????###########???# #?????????????????????????? | | ???????????????????# ?????????????????????????? | | ???????????????????# ?????????????????????????? | | ???????????????????# ????????????????????????? | | ???????????????????######????????????????????????? | | ?????????????????????????????????????????????????? | | ?????????????????????????????????????????????????? | | ?????????????????????????????????????????????????? | | ?????????????????????????????????????????????????? | | ?????????????????????????????????????????????????? | | ?????????????????????????????????????????????????? | | ?????????????????????????????????????????????????? | | ?????????????????????????????????????????????????? | +----------------------------------------------------+ Best States ------------- Heat Dissipation 139 Energy Generation 67 Energy Capacity 1975 Matter Stores 300 Matter Capacity 1800 Sight Range 23 Robot Scan Range 16 Terrain Scan Range 16 Terrain Scan Density 110 Power Amplification 30 Base Temperature (-) 150 Armor Coverage 1200 Resistance: TH 25 Resistance: EX 50 Resistance: EM 25 Core Shielding 30 Propulsion Shielding 90 Weapon Shielding 90 Weapon Cycling 25 Phase Shifting 15 Evasion (%) 60 Targeting Accuracy 22 Target Analysis 12 Core Analysis 12 Armor Integrity Analysis 50 Recoil Reduction 6 Kinecelleration 50 Salvage Targeting 2 Offensive Hacking 14 Defensive Hacking 10 Item Schematics ----------------- Assault Rifle | -9/Materials | Hacked Armor Integrity Analyzer | -7/Factory | Scanalyzed Lgt. Armor Plating | -7/Factory | Scanalyzed Exp. Shield Generator | -2/Quarantine | Archive Robot Schematics ------------------ M-13 Machinist | -10/Materials | Hacked K-01 Serf | -2/Quarantine | Archive Fabricated ------------ Nothing Repaired ---------- Lgt. Cannon | 55% | -10/Materials Alien Tech Used ----------------- Sigix Broadsword Core Cannon Achievements -------------- None Challenges ------------ None Game ------ Seed ScrapoidSapperRifle Manual? 0 Play Time 06:48:42 Cumulative 1129.3 hours Start 2025.07.25 @ 18:09:16 End 2025.07.26 @ 18:33:38 Sessions 7 Manual Loads 0 Difficulty Rogue Special Mode None Game No. 559 Rogue 559 Adventurer 0 Explorer 0 Win Type - Total 23 Types 10/4/3/0/1/1/2/2/0/0 Lore% 90 Gallery% 89 Achievement% 83 Wizard Run 0 Options --------- Layout 0 ASCII 0 Keyboard 0 Movement Numpad Keybinds 0 Fullscreen 2 Font 24/Smallcaps Map View 76x50 Zoom Use 0% Tactical HUD 1 Map Filters NONE Filters SHIFT_HUE(315) Steam 1 RUN: 9074de64-7f27-48eb-8375-598711487bb7